{"text_format":"1","workbook":"xlsx","n_sheets":1,"sheets":["conceptos"],"not_rendered":{"charts":0,"images":2,"macros":1,"external_links":0,"defined_names":1,"comments":0,"pivot_tables":0},"unopened":[],"bounds":{"document_bytes":16777216,"sheet_cells":100000,"rows_first":2000,"rows_last":500,"rows_between":2000,"halvings":0,"cell_chars":16384,"cell_head_chars":4096},"cells_cut":0,"cells_raw":0,"read":"whole","date_system":"1900"}

{"sheet":"conceptos","index":0,"n_rows":216,"n_cols":8,"rows_kept":216,"cut":false,"hidden":false,"merged":[[213,0,213,4],[214,0,215,4],[13,0,13,6],[0,2,0,5],[9,2,9,5],[1,2,3,5],[4,2,4,3],[6,2,6,3],[7,2,7,3],[4,4,4,5],[5,4,5,5],[6,4,6,5],[7,4,7,5],[10,2,10,5],[11,2,11,5],[5,1,8,1]]}
[null,"GOBIERNO DEL ESTADO DE JALISCO","LICITACIÓN PÚBLICA ESTATAL"]
[null,"INSTITUTO DE LA INFRAESTRUCTURA FÍSICA EDUCATIVA DEL","E-REM-B-CON-06076-LP-0085-2020"]
[null,"ESTADO DE JALISCO"]
[]
[null,"DESCRIPCIÓN GENERAL DE LOS TRABAJOS:","FECHA DE INICIO:"]
[null,null,null,"FECHA DE TERMINACIÓN:"]
[null,null,"PLAZO DE EJECUCIÓN:"]
[null,null,"FECHA:"]
[]
[null,"RAZÓN SOCIAL DEL LICITANTE:","NOMBRE, CARGO Y FIRMA DEL LICITANTE:",null,null,null,"DOCUMENTO"]
[]
[]
[]
["PRESUPUESTO DE OBRA"]
[]
["CLAVE","DESCRIPCIÓN","UNIDAD","CANTIDAD","PRECIO UNITARIO ($)","PRECIO UNITARIO ($) CON LETRA","IMPORTE ($) M.N."]
["TRABAJO : BAS-CON-06076","TRABAJOS DE TERMINACIÓN DE EDIFICIO E INSTALACIONES EN OBRA EXTERIOR EN LA ESCUELA PRIMARIA JUANA DE ASBAJE CCT 14DPR3471K, UBICADA EN LA COLONIA BRISAS DE CHAPALA, MUNICIPIO DE SAN PEDRO TLAQUEPAQUE, JALISCO.",null,null,null,null,{"$f":"TEXT(SUM(G18 + G64 + G68 + G134 + G144 + G155 + G166 + G171), \"$ #,##0.00 ;\")","v":"$ 0.00 "}]
["A","EDIFICIO A",null,null,null,null,{"$f":"TEXT(SUM(G19 + G24 + G28 + G31 + G38 + G44 + G50 + G52), \"$ #,##0.00 ;\")","v":"$ 0.00 "}]
["A.01(140)","DEMOLICIONES, DESMONTAJES Y MECANICA DE SUELOS    ",null,null,null,null,{"$f":"TEXT(SUM(G20:G23), \"$ #,##0.00 ;\")","v":"$ 0.00 "}]
[140185,"DEMOLICION DE CONSTRUCCION EXISTENTE EN ENDIFICIOS DE UN NIVEL Y/O PLANTA BAJA, INCLUYE: MUROS, CADENAS, CASTILLOS, PISOS,  FIRMES, CIMENTACIONES HASTA 20 CM POR DEBAJO DEL NIVEL DEL TERRENO NATURAL, CUBIERTA A BASE DE BOVEDA DE CUÑA,  DESMANTELAMIENTO DE PERFILES ESTRUCTURALES TIPO IPS,  CANCELERIA, RECUBRIMIENTOS, MUEBLES E INSTALACIONES (SIN RECUPERACION) ETC., ACARREO DENTRO Y FUERA DE LA OBRA DEL MATERIAL. MEDIDO POR M2 CONSTRUIDO.(PROYECCION DE CUBIERTA).","M2 ","284.4200",0,"CERO PESOS 00/100 M.N.",0,266543]
[140196,"DEMOLICION DE CONSTRUCCION EXISTENTE EN NIVEL SUPERIOR (PLANTA ALTA), INCLUYE: MUROS, CADENAS, CASTILLOS, PISOS, CUBIERTA A BASE DE BOVEDA DE CUÑA,  DESMANTELAMIENTO DE PERFILES ESTRUCTURALES TIPO IPS (SIN RECUPERACION DE ESTRUCTURA),  CANCELERIA, RECUBRIMIENTOS, ETC., ACARREO DENTRO Y FUERA DE LA OBRA DEL MATERIAL. MEDIDO POR M2 CONSTRUIDO.(PROYECCION DE CUBIERTA).","M2 ","284.4200",0,"CERO PESOS 00/100 M.N.",0,266544]
[140528,"DEMOLICION DE CIMIENTO DE PIEDRA BRAZA ASENTADA CON MORTERO CEMENTO-ARENA, INCLUYE: ACARREO EN CARRETILLA EN ESTACIONES DE 20.0 MTS. AL LUGAR INDICADO PARA SU RETIRO POSTERIOR.","M3 ","32.0000",0,"CERO PESOS 00/100 M.N.",0,266545]
[140619,"DEMOLICION DE CONCRETO ARMADO EN CIMENTACION A BASE DE ZAPATAS Y CONTRATRABES CON MEDIOS MECANICOS O MANUALES EN FORMA ALEATORIA Y POR SECCIONES INCLUYE RETIRO DE MATERIAL FUERA DE LA OBRA DEL PRODUCTO DE LA DEMOLICION Y MANO DE OBRA CALIFICADA.\n","M3 ","16.0000",0,"CERO PESOS 00/100 M.N.",0,266547]
["A.02(382)","ELEMENTOS COMPLEMENTARIOS DE ALBAÑILERIA          ",null,null,null,null,{"$f":"TEXT(SUM(G25:G27), \"$ #,##0.00 ;\")","v":"$ 0.00 "}]
[345023,"ACCESO DE AZOTEA DE 1.00 X 1.00 M CON PRETIL DE LADRILLO DE LAMA DE 5.0 X 11.0 X 22.0 CM, 30 CM DE ALTURA, ASENTADO Y APLANADO CON MORTERO CEMENTO-ARENA DE RIO 1:4, TAPA CORREDIZA DE LAMINA NEGRA CALIBRE 18 CON BASTIDOR DE MARCO DE ANGULO DE  1\" X 1/8\" Y CONTRAMARCO Y RIEL DE PTR 1\" (BLANCO), INCLUYE: MATERIALES, ZAVALETAS DE LADRILLO DE AZOTEA, IMPERMEABILIZANTE, BOQUILLAS, ANCLAS, BALEROS, PINTURA DE TALLER Y ESMALTE A DOS MANOS, PINTURA VINILICA EN APLANADOS, DESPERDICIOS, NIVELACION, LIMPIEZAS, HERRAMIENTAS, MANO DE OBRA, Y  ACARREO DE MATERIALES AL SITIO DE SU UTILIZACION, A CUALQUIER NIVEL.","PZA","1.0000",0,"CERO PESOS 00/100 M.N.",0,266549]
[382017,"LOSA DE CONCRETO FC=200 KG/CM2 DE 10.0 CMS. DE ESPESOR Y 60.0 CMS. DE ANCHO, PARA RECIBIR LAVABO U OVALIN, ARMADA CON VARILLA #3 @ 30.0 CMS. EN AMBOS SENTIDOS, ACABADO APALILLADO, INCLUYE: TRAZO, CIMBRA COMUN Y DESCIMBRADO, RECUBRIMIENTO DE MARMOL TRAVERTINO DE 2 CM. DE ESPESOR, ORILLAS REDONDEADAS, DESPERDICIOS, NIVELACION, CORTES, ABRILLANTADO, AJUSTES, REMATES, ZOCLO 10.0 CMS, FALDONES 10.0 CMS., TALADROS PARA LLAVES Y OVALINES, HERRAMIENTAS, MANO DE OBRA, LIMPIEZA Y ACARREO DE MATERIAL AL SITIO DE SU UTILIZACION, A CUALQUIER NIVEL .","ML ","4.8000",0,"CERO PESOS 00/100 M.N.",0,266550]
[383022,"FORJADO DE BASE PARA VERTEDERO DE 0.40 X 0.40 X 0.40 M. MEDIDAS INTERIORES, FORJADA CON LADRILLO DE LAMA DE 14 CM. DE ESPESOR ASENTADO Y APLANADO CON MORTERO CEMENTO-ARENA DE RIO EN PROPORCION 1:3, RECUBIERTA CON AZULEJO DE 1RA. EN AREAS  EXTERIORES, INCLUYE: TRAZO, NIVELACION, PLOMEO, EMBOQUILLADO, ACARREO DE MATERIALES AL SITIO DE SU UTILIZACION, MANO DE OBRA Y HERRAMIENTA.","PZA","2.0000",0,"CERO PESOS 00/100 M.N.",0,266551]
["A.03(390)","CARPINTERIA                                       ",null,null,null,null,{"$f":"TEXT(SUM(G29:G30), \"$ #,##0.00 ;\")","v":"$ 0.00 "}]
[390082,"SUMINISTRO Y COLOCACION DE PUERTA DE TAMBOR CON TRIPLAY DE CAOBILLA DE 6 MM. POR AMBAS CARAS, DE  0.91 A 1.10 MTS. X 2.50 MTS. FORMADA A BASE DE BASTIDOR Y MARCO DE  MADERA DE PINO DE PRIMERA DE  2\"  X  1 1/2\"   Y  PEINAZOS DE 1 1/2\" X 1 1/2\"  A CADA 30 CMS. EN AMBOS SENTIDOS, ACABADO ENTINTADO Y LACA BRILLANTE TRANSPARENTE,  INCLUYE: MARCO Y TOPES DE MADERA,  JAMBAS, CHAPA SCOVILL MODELO A-52-PS,  RESANADOR PARA MADERA, BISAGRA DE LIBRO DE 3\", DESPERDICIOS, MATERIALES MENORES Y DE CONSUMO, HERRAMIENTAS,  ACARREO DE MATERIALES AL SITIO DE SU COLOCACION,  LIMPIEZA DEL AREA DE TRABAJO Y MANO DE OBRA ESPECIALIZADA.","PZA","2.0000",0,"CERO PESOS 00/100 M.N.",0,266552]
[390159,"MUEBLE DIVISORIO EN DIRECCION, FABRICADO CON BASTIDOR DE PINO DE PRIMERA DE 1\" DE ESPESOR, FORRADO CON TRIPLAY DE CAOBILLA DE 6 MM. Y FONDO DE TRIPLAY DE CAOBILLA DE 6 MM., CONSTA DE DOS MODULOS (UNO MODULO LIBRERO DOBLE VISTA DE 2.43 MTS. DE ALTURA, 1.03 MTS. DE LARGO Y 0.30 MTS. DE FONDO DE CADA LADO Y CUATRO ENTREPAÑOS DE CADA LADO Y PUERTAS INFERIORES Y UN MODULO VITRINA PARA ASTA BANDERA DE 2.43 M. DE ALTURA, 1.03 MTS. DE LARGO Y 0.60 MTS. DE FONDO, CON 2 PUERTAS ABATIBLES AL FRENTE DE CRISTAL DE 6 MM. CON MEDIDAS DE 1.95 MTS. DE ALTURA Y 0.50 MTS. DE ANCHO CADA UNA), TERMINADOS COLOR MADERA ENTINTADA Y LACA TRANSPARENTE ACABADO BRILLANTE, DESPLANTADO SOBRE UN ZOCLO DE PERFIL TUBULAR METALICO TIPO ZR-300 CAL. 16, FORMANDO UN BASTIDOR CON DIMENSIONES DE 2.06 X 0.60 MTS. Y  7.5 CM DE PERALTE, FIJADO AL PISO CON TAQUETES DE PLASTICO Y PIJAS, INCLUYE: BASTIDOR METALICO, CHAPA PARA VITRINA, BISAGRAS DE LIBRO PARA LAS PUERTAS, HERRAJES PARA CRISTAL,  BROCHES PERICO PARA PUERTAS, JALADERAS DE BOTON, SELLADOR, TAPAPORO, DESPERDICIOS, MANO DE OBRA ESPECIALIZADA Y ACARREO DEL MATERIAL AL SITIO DE SU UTILIZACION.","PZA","2.0000",0,"CERO PESOS 00/100 M.N.",0,266553]
["A.04(393)","PINTURA                                           ",null,null,null,null,{"$f":"TEXT(SUM(G32:G37), \"$ #,##0.00 ;\")","v":"$ 0.00 "}]
[393022,"PINTURA VINIL-ACRÍLICA A BASE DE AGUA ACABADO SEMIMATE  LAVABLE, PARA INTERIORES Y EXTERIORES QUE NO DESPRENDA VAPORES TÓXICOS NI OLORES DESAGRADABLES, CON LAS SIGUIENTES CARACTERÍSTICAS ( SÓLIDOS POR PESO 46-52%, SÓLIDOS POR VOLUMEN 30-36%, VISCOSIDAD DE 100-130 UK A 25°C, DENSIDAD > O = 1.2 TON/M3., LAVABILIDAD > O = 4,000 CICLOS, TIEMPO DE SECADO AL TACTO, 30-40 MIN., TIEMPO DE SECADO DURO < O = 8 HRS., CICLO DE CURADO DE 7 DIAS, PH 6-8, RENDIMIENTO EN SUP. LISA 8-10 M2/LT., FINEZA DE MOLIDO (HEGMAN) 3-7 UH.)  EN MUROS APLANADOS DE MEZCLA APALILLADO O PULIDO, TRABAJO TERMINADO, A DOS MANOS, INCLUYE: MATERIALES MENORES Y DE CONSUMO, ANDAMIOS, PREPARACION DE LA SUPERFICIE, SELLADO DE LA SUPERFICIE, HERRAMIENTAS, LIMPIEZA, MANO DE OBRA Y  ACARREOS DE MATERIALES AL SITIO DE SU UTILIZACIÓN.","M2 ","353.8000",0,"CERO PESOS 00/100 M.N.",0,266554]
[393052,"PINTURA VINIL-ACRÍLICA A BASE DE AGUA ACABADO SEMIMATE  LAVABLE, PARA INTERIORES Y EXTERIORES QUE NO DESPRENDA VAPORES TÓXICOS NI OLORES DESAGRADABLES, CON LAS SIGUIENTES CARACTERÍSTICAS ( SÓLIDOS POR PESO 46-52%, SÓLIDOS POR VOLUMEN 30-36%, VISCOSIDAD DE 100-130 UK A 25°C, DENSIDAD > O = 1.2 TON/M3., LAVABILIDAD > O = 4,000 CICLOS, TIEMPO DE SECADO AL TACTO, 30-40 MIN., TIEMPO DE SECADO DURO < O = 8 HRS., CICLO DE CURADO DE 7 DIAS, PH 6-8, RENDIMIENTO EN SUP. LISA 8-10 M2/LT., FINEZA DE MOLIDO (HEGMAN) 3-7 UH.)  EN LOSAS Y ELEMENTOS DE CONCRETO, TRABAJO TERMINADO, A DOS MANOS, INCLUYE: MATERIALES MENORES Y DE CONSUMO, ANDAMIOS, PREPARACION DE LA SUPERFICIE DE CONCRETO, SELLADO DE LA SUPERFICIE, HERRAMIENTAS, LIMPIEZA, MANO DE OBRA Y  EQUIPO DE SEGURIDAD. A CUALQUIER ALTURA.","M2 ","290.0000",0,"CERO PESOS 00/100 M.N.",0,266555]
[393142,"PINTURA DE ESMALTE ALQUIDALICO ANTICORROSIVO, ACABADO BRILLANTE, PARA INTERIORES Y EXTERIORES QUE NO DESPRENDA VAPORES TÓXICOS NI OLORES DESAGRADABLES, CON LAS SIGUIENTES CARACTERÍSTICAS ( SÓLIDOS POR PESO 49-60%, SÓLIDOS POR VOLUMEN 40-46%, VISCOSIDAD DE 110-160 UK A 25°C, DENSIDAD 0.9-1.2 TON/M3., BRILLO A 60°C, 90%, TIEMPO DE SECADO AL TACTO, < O = 6 HRS., TIEMPO DE SECADO DURO < O = 24 HRS., ADHERENCIA 100%, RENDIMIENTO EN SUP. LISA 8-10 M2/LT., DILUCIÓN MÁXIMA (AGUARRÁS, THINER), 15 %,  EN HERRERIA ABIERTA DE PERFILES ESTRUCTURALES (PROTECCIONES), MEDIDA POR UN SOLO LADO, TRABAJO TERMINADO, A DOS MANOS, INCLUYE: MATERIALES MENORES Y DE CONSUMO, ANDAMIOS, PREPARACION DE LA SUPERFICIE, HERRAMIENTAS, LIMPIEZA, MANO DE OBRA Y  EQUIPO DE SEGURIDAD. A CUALQUIER NIVEL. (LA PINTURA ES POR AMBOS LADOS DE LA HERRERIA, PERO PARA SU PAGO ES MEDIDA SOLO POR 1 SOLO LADO).","M2 ","71.7000",0,"CERO PESOS 00/100 M.N.",0,266556]
[393324,"PINTURA DE ESMALTE ALQUIDALICO ANTICORROSIVO, ACABADO BRILLANTE, PARA INTERIORES Y EXTERIORES QUE NO DESPRENDA VAPORES TÓXICOS NI OLORES DESAGRADABLES, CON LAS SIGUIENTES CARACTERÍSTICAS ( SÓLIDOS POR PESO 49-60%, SÓLIDOS POR VOLUMEN 40-46%, VISCOSIDAD DE 110-160 UK A 25°C, DENSIDAD 0.9-1.2 TON/M3., BRILLO A 60°C, 90%, TIEMPO DE SECADO AL TACTO, < O = 6 HRS., TIEMPO DE SECADO DURO < O = 24 HRS., ADHERENCIA 100%, RENDIMIENTO EN SUP. LISA 8-10 M2/LT., DILUCIÓN MÁXIMA (AGUARRÁS, THINER), 15 %,   EN TUBO DE FIERRO NEGRO DE 2\" DE DIÁMETRO, (POSTES, PASAMANOS, BARANDALES, ESTRUCTURAS, REDES, ETC.), TRABAJO TERMINADO, A DOS MANOS, INCLUYE: MATERIALES MENORES Y DE CONSUMO, PREPARACION DE LA SUPERFICIE, ANDAMIOS, HERRAMIENTAS, LIMPIEZA, MANO DE OBRA Y  EQUIPO DE SEGURIDAD. CUALQUIER ALTURA.","ML ","42.0000",0,"CERO PESOS 00/100 M.N.",0,266557]
[393325,"PINTURA DE ESMALTE ALQUIDALICO ANTICORROSIVO, ACABADO BRILLANTE, PARA INTERIORES Y EXTERIORES QUE NO DESPRENDA VAPORES TÓXICOS NI OLORES DESAGRADABLES, CON LAS SIGUIENTES CARACTERÍSTICAS ( SÓLIDOS POR PESO 49-60%, SÓLIDOS POR VOLUMEN 40-46%, VISCOSIDAD DE 110-160 UK A 25°C, DENSIDAD 0.9-1.2 TON/M3., BRILLO A 60°C, 90%, TIEMPO DE SECADO AL TACTO, < O = 6 HRS., TIEMPO DE SECADO DURO < O = 24 HRS., ADHERENCIA 100%, DILUCIÓN MÁXIMA (AGUARRÁS, THINER), 15 %,  EN BARANDAL METALICO, EN COLOR DE ACUERDO A INDICADO POR SUPERVISIÓN MEDIDO POR UN SOLO LADO, TRABAJO TERMINADO, A DOS MANOS, INCLUYE: MATERIALES MENORES Y DE CONSUMO, PREPARACION DE LA SUPERFICIE, ANDAMIOS, HERRAMIENTAS, LIMPIEZA, MANO DE OBRA Y  EQUIPO DE SEGURIDAD. CUALQUIER ALTURA..","M2 ","39.4900",0,"CERO PESOS 00/100 M.N.",0,266558]
[393525,"FABRICACION, SUMINISTRO E INSTALACION DE ROTULO DE IDENTIFICACION EN PUERTAS DE INGRESO A (SANITARIOS, DIRECCIONES, AULAS, ANEXOS, ETC.)  CON MEDIDAS GENERALES DE 40 X 20 CM., FABRICADOS A BASE DE ACRILICO SOLIDO DE 3 MM. DE ESPESOR, COLOR CRISTALINO, FORRADO CON VINIL ADHERIBLE OPACO, CON IMAGEN, TEXTO IMPRESO Y CODIGO BRAILLE AL MARGEN INFERIOR IZQUIERDO, INCLUYE: TRAZO, DISEÑO, MATERIALES, MARGEN IMPRESO DE 1 CM DE ANCHO,  ELEMENTOS DE FIJACION,  EQUIPO, HERRAMIENTA Y MANO DE OBRA. EN CUALQUIER NIVEL.","PZA","8.0000",0,"CERO PESOS 00/100 M.N.",0,266559]
["A.05(396)","LIMPIEZA                                          ",null,null,null,null,{"$f":"TEXT(SUM(G39:G43), \"$ #,##0.00 ;\")","v":"$ 0.00 "}]
[396012,"LIMPIEZA DE PISOS DE CONCRETO CON AGUA Y ACIDO MURIATICO AL 10%.","M2 ","79.3500",0,"CERO PESOS 00/100 M.N.",0,266560]
[396022,"LIMPIEZA EN PISO DE CERAMICA, CON AGUA Y JABON.","M2 ","355.5800",0,"CERO PESOS 00/100 M.N.",0,266561]
[396032,"LIMPIEZA DE RECUBRIMIENTOS VIDRIADOS EN MUROS, CON JABON, AGUA Y ACIDO MURIATICO AL 10 %.","M2 ","92.2500",0,"CERO PESOS 00/100 M.N.",0,266562]
[396042,"LIMPIEZA DE VIDRIOS CON AGUA Y JABON, 2 CARAS.","M2 ","72.2600",0,"CERO PESOS 00/100 M.N.",0,266563]
[396222,"LIMPIEZA DE MUEBLES DE BAÑO, CON AGUA Y JABON.","PZA","21.0000",0,"CERO PESOS 00/100 M.N.",0,266564]
["A.06(410)","CANCELERIA, HERRERIA, ALUMINIO, VIDRIOS Y CHAPAS  ",null,null,null,null,{"$f":"TEXT(SUM(G45:G49), \"$ #,##0.00 ;\")","v":"$ 0.00 "}]
[412006,"SUMINISTRO, FABRICACION Y COLOCACION DE HERRERIA TUBULAR Y/O ESTRUCTURAL PARA BARANDAL O PASAMANOS,  INCLUYE: SOLDADURA, CORTES, AJUSTES, MATERIALES MENORES, DESCALIBRES, DESPERDICIOS, BISAGRAS, FONDO ANTICORROSIVO, FLETES, HERRAMIENTAS, MANO DE OBRA, Y ACARREO DE MATERIALES AL SITIO DE SU UTLIZACION.","KG ","762.2000",0,"CERO PESOS 00/100 M.N.",0,266565]
[412041,"FABRICACION, SUMINISTRO Y COLOCACION DE PROTECCIONES PARA VENTANERIA A BASE DE HERRERIA ESTRUCTURAL DE ACERO, ELABORADA CON UN PERFIL PERIMETRAL DE ANGULO DE 1 1/2\" X 1 1/2\" X 3/16\",  HORIZONTALES DE REDONDO SOLIDO LISO DE 1/2\" SEPARADOS  DE C. A C. 11.5 CM. PROMEDIO Y REFUERZOS VERTICALES DE SOLERA DE 3/16\" X 1 1/4\" COLOCADOS A @ 73.5 CM. PROMEDIO, CON PERFORACIONES PARA INSERCION DE REDONDOS. ANCLADA A ESTRUCTURA (CONSTRUCCION) A BASE DE TORNILLO CON BARRENANCLA Y/O SOLDADURA,  INCLUYE: TRAZO, CORTES, SOLDADURA, NIVELACION, PLAMEO, PERFORACIONES, PINTURA DE TALLER,  AJUSTES Y DETALLES REALIZADOS EN OBRA DE ACUERDO A LO CONSTRUIDO,  ACARREOS, LIMPIEZA, MATERIALES, DESPERDICIOS, HERRAMIENTAS, EQUIPOS, MANO DE OBRA CALIFICADA Y ACARREO DE MATERIALES AL SITIO DE SU COLOCACION. EN CUALQUIER NIVEL.","M2 ","71.7000",0,"CERO PESOS 00/100 M.N.",0,266566]
[420075,"SUMINISTRO Y COLOCACION DE PUERTA Y/O MAMPARA TIPO TAMBOR, MCA. SANILOCK O SIMILAR,  MODELO ESTANDAR, FABRICADO A BASE DE BASTIDOR  DE PERFIL TUBULAR DE ACERO GALVANIZADO DE 1\" X 1\", EN CAL 20 Y LAMINAS DE ACERO CON ACABADO ESMALTADO ANTIGRAFITI EN CUALQUIER  COLOR, EN AMBAS CARAS CON MODULACION DE ACUERDO A GUIAS MECANICAS, CUBRACANTOS DE LAMINA DE ACERO INOXIDABLE TIPO 304, CAL 24., INCLUYE: HERRAJES, PASADORES, BISAGRAS, TOPES, JALADERAS, CUBRECANTOS, DESPERDICIOS, AJUSTES, RELLENO INTERIOR CON POLIESTIRENO EXPANDIDO DE 1\" DE ESPESOR, MATERIALES DE FIJACION, MANO DE OBRA ESPECIALIZADA, HERRAMIENTAS, MANO DE OBRA, LIMPIEZA Y ACARREO DE MATERIALES AL SITIO DE SU UTILIZACION. (AREA EFECTIVA DE LA MAMPARA)\n","M2 ","36.9500",0,"CERO PESOS 00/100 M.N.",0,266567]
[424322,"SUMINISTRO Y COLOCACION DE TOPES DE PISO PARA PUERTA. INC.: ACARREO DE MATERIAL AL SITIO DE SU UTILIZACION, A CUALQUIER NIVEL.","PZA","10.0000",0,"CERO PESOS 00/100 M.N.",0,266568]
[426525,"SUMINISTRO Y COLOCACION DE ESPEJO DE CRISTAL FLOTADO DE 6 MM. CON MARCO DE ALUMINIO ANODIZADO NATURAL DE 1 1/2\", INCLUYE: MATERIALES MENORES Y DE CONSUMO,  ELEMENTOS DE FIJACION, MARCO DE ALUMINIO, VINILO, PIJAS, HERRAMIENTAS, LIMPIEZA Y MANO DE OBRA ESPECIALIZADA.","M2 ","3.2500",0,"CERO PESOS 00/100 M.N.",0,266569]
["A.07(564)","INSTALACION HIDRAULICA, SANITARIA Y GAS EN EDIF.  ",null,null,null,null,{"$f":"TEXT(SUM(G51:G51), \"$ #,##0.00 ;\")","v":"$ 0.00 "}]
[592012,"SUMINISTRO Y COLOCACION DE CESPOL BOTE DE P.V.C. CON REJILLA CROMADA. INCLUYE: MATERIALES MENORES Y DE CONSUMO, HERRAMIENTAS, DESPERDICIOS, PRUEBAS, MANO DE OBRA Y ACARREO DE MATERIALES AL SITIO DE SU COLOCACION.","PZA","11.0000",0,"CERO PESOS 00/100 M.N.",0,266570]
["A.08(590)","MUEBLES DE BAÑO Y COCINA                          ",null,null,null,null,{"$f":"TEXT(SUM(G53:G63), \"$ #,##0.00 ;\")","v":"$ 0.00 "}]
[385018,"SUMINISTRO Y COLOCACION DE PAPELERA CROMADA DE EMPOTRAR MCA. URREA FIG. 3304 O SIMILAR,  INCLUYE: MATERIALES MENORES, ELEMENTOS DE FIJACION, HERRAMIENTAS, MANO DE OBRA Y ACARREO DE MATERIALES AL SITIO DE SU COLOCACION.","PZA","10.0000",0,"CERO PESOS 00/100 M.N.",0,266571]
[385021,"SUMINISTRO Y COLOCACION DE JABONERA CROMADA, MCA. URREA FIG. 3308 DE SOBREPONER, INC: MATERIALES PARA SU FIJACION, FLETES, MANIOBRAS, MANO DE OBRA Y ACARREO DE MATERIALES AL SITIO DE SU COLOCACION.","PZA","6.0000",0,"CERO PESOS 00/100 M.N.",0,266572]
[385302,"SUMINISTRO Y COLOCACION DE BARRA DE APOYO PARA DISCAPACITADOS DE ACERO INOXIDABLE PARA MINGITORIO (MULETAS) MOD. 7384-0 (1041) DE SANILOCK O SIMILAR CON CHAPETON, FIJADO A MURO. INCLUYE: ACCESORIOS Y MATERIALES DE FIJACION.","PZA","1.0000",0,"CERO PESOS 00/100 M.N.",0,266573]
[385306,"SUMINISTRO E INSTALACIÓN DE BARRA RECTA DE APOYO VERTICAL PARA DISCAPACITADOS FABRICADA CON PERFIL TUBULAR REDONDO, DE ACERO INOXIDABLE CAL.18, TIPO 304, ACABADO PULIDO, DE 1 1/4 (3.8 CM) DE DIÁMETRO Y 70 CM DE LONGITUD, MCA. SANILOCK, HELVEX O SIMILAR, INCLUYE: CHAPETONES, ACCESORIOS Y MATERIALES DE FIJACION, HERRAMIENTAS, MANO DE OBRA, EQUIPO, NIVELACIÓN, LIMPIEZA DEL ÁREA DE TRABAJO Y ACARREOS.","PZA","2.0000",0,"CERO PESOS 00/100 M.N.",0,266574]
[385312,"SUMINISTRO Y COLOCACION DE BARRA DE APOYO PARA DISCAPACITADOS DE ACERO INOXIDABLE PARA W.C. MOD. 7386-0 (1045) DE SANILOCK O SIMILAR CON CHAPETON, FIJADO A MURO. INCLUYE: ACCESORIOS Y MATERIALES DE FIJACION.","PZA","2.0000",0,"CERO PESOS 00/100 M.N.",0,266575]
[590030,"SUMINISTRO E INSTALACION DE INODORO PARA FLUXOMETRO, MODELO OLIMPICO FLUX, COLOR BLANCO, MARCA AMERICAN STANDARD, INCLUYE: ASIENTO DE PLASTICO, MATERIALES MENORES Y DE CONSUMO, ELEMENTOS DE FIJACION, LIMPIEZA, CUELLO DE CERA CON GUIA, PRUEBAS, HERRAMIENTAS, MANO DE OBRA Y ACARREO DE MATERIALES AL SITIO DE SU COLOCACION.","PZA","10.0000",0,"CERO PESOS 00/100 M.N.",0,266576]
[590163,"SUMINISTRO Y COLOCACION DE MINGITORIO PARA FLUXOMETRO, COLOR BLANCO, MCA. AMERICAN STANDARD, MODELO NIAGARA, O SIMILAR CON CESPOL INTEGRAL, INCLUYE: MATERIALES MENORES, HERRAMIENTAS, ELEMENTOS DE FIJACION, NIVELACION, PRUEBAS, MANO DE OBRA Y ACARREO DE MATERIALES AL SITIO DE SU COLOCACION.","PZA","3.0000",0,"CERO PESOS 00/100 M.N.",0,266577]
[590356,"SUMINISTRO Y COLOCACION DE VERTEDERO DE ACERO INOXIDABLE CAL. 18, TIPO 304 18/10, DE 40 X 40 X 26 M.,  INCLUYE: LLAVE DE CHORRO CROMADA FIG. 18-L, CHAPETON CROMADO, CONTRA CANASTA MCA. URREA FIG. 3801, MATERIALES MENORES Y DE CONSUMO, NIVELACION, SELLADO PERIMETRAL, PRUEBAS, HERRAMIENTAS, LIMPIEZA, MANO DE OBRA Y ACARREO AL SITIO DE SU COLOCACION.","PZA","2.0000",0,"CERO PESOS 00/100 M.N.",0,266578]
[591556,"SUMINISTRO Y COLOCACION DE FLUXOMETRO PARA W.C. DE PALANCA, MARCA HELVEX MODELO 110/32 O SIMILAR, INCLUYE: MATERIALES MENORES, PRUEBAS Y ACARREO DE MATERIALES AL SITIO DE SU COLOCACION, A CUALQUIER NIVEL.","PZA","10.0000",0,"CERO PESOS 00/100 M.N.",0,266579]
[591566,"SUMINISTRO Y COLOCACION DE FLUXOMETRO PARA MINGITORIO DE MANIJA MARCA HELVEX MODELO 185/19 O SIMILAR, INCLUYE: MATERIALES MENORES, PRUEBAS Y ACARREO DE MATERIALES AL SITIO DE SU COLOCACION, A CUALQUIER NIVEL.","PZA","3.0000",0,"CERO PESOS 00/100 M.N.",0,266580]
[907494,"SUMINISTRO Y COLOCACION DE  OVALINES DE DE SOBREPONER DE CEJA ANCHA, MARCA AMERICAN STANDARD MODELO RONDALYN MONOMANDO, INCLUYE: LLAVE ECONOMIZADORA MARCA HELVEX CROMADA MODELO TV-120, LLAVE ANGULAR MCA. URREA, FIG. 401, MANGUERA FLEXIBLE COFLEX, CESPOL CROMADO MCA. URREA FIG. 207, HERRAMIENTA, MATERIALES MENORES Y DE CONSUMO, ELEMENTOS DE FIJACION, LIMPIEZA, MANO DE OBRA Y ACARREO DEL MATERIAL AL SITIO DE SU UTILIZACION.","PZA","6.0000",0,"CERO PESOS 00/100 M.N.",0,266581]
["AUL","AULAS",null,null,null,null,{"$f":"TEXT((G65), \"$ #,##0.00 ;\")","v":"$ 0.00 "}]
["AUL.01(140)","DEMOLICIONES, DESMONTAJES Y MECANICA DE SUELOS    ",null,null,null,null,{"$f":"TEXT(SUM(G66:G67), \"$ #,##0.00 ;\")","v":"$ 0.00 "}]
[140602,"DEMOLICION DE FIRME Y/O PISO DE CONCRETO DE 10 CM DE ESPESOR PROMEDIO, EN SECCIONES OBLIGADAS, INC. CORTE CON DISCO PARA DELIMITAR AREA DE DEMOLICION; MANO DE OBRA, HERRAMIENTA, EQUIPO,  CARGA Y ACARREO INTERIOR Y FUERA DE LA OBRA DEL MATERIAL PRODUCTO DE LA DEMOLICION.","M2 ","12.0000",0,"CERO PESOS 00/100 M.N.",0,266546]
[933587,"DESMONTAJE DE AULA PROVISIONAL INCLUYE: DESMANTELAMIENTO Y TRASLADO HASTA 12 KM PARA SU REINSTALACION, CARGA, DESCARGA, DESMONTAJE, DESMANTELAMIENTO DE RIEL Y SU POSTERIOR COLOCACION AULA DE 7 X 6.10 M. HERRAMIENTAS Y ACARREOS DE MATERIALES AL SITIO DE SU REINSTALACION.","PZA","2.0000",0,"CERO PESOS 00/100 M.N.",0,266548]
[15,"CUARTO DE MAQUINAS",null,null,null,null,{"$f":"TEXT(SUM(G69 + G75 + G85 + G89 + G95 + G100 + G104 + G107 + G110 + G115 + G117 + G121 + G130), \"$ #,##0.00 ;\")","v":"$ 0.00 "}]
["15.01(150)","TRABAJOS PRELIMINARES                             ",null,null,null,null,{"$f":"TEXT(SUM(G70:G74), \"$ #,##0.00 ;\")","v":"$ 0.00 "}]
[150110,"TRAZO Y NIVELACION DE EDIFICIOS ESTABLECIENDO REFERENCIAS DEFINITIVAS, CON TRANSITO Y NIVEL (EQUIPO TOPOGRAFICO), INCLUYE: PERSONAL TECNICO CALIFICADO, ESTACAS, MOJONERAS, LOCALIZACION DE ENTRE EJES, BANCOS DE NIVEL, MATERIALES PARA SEÑALAMIENTO, EQUIPO, HERRAMIENTA Y MANO DE OBRA.","M2 ","6.3000",0,"CERO PESOS 00/100 M.N.",0,266582]
[150210,"DESPALME DE TERRENO NATURAL POR CUALQUIER MEDIO, CON ESPESOR PROMEDIO DE 20 CM. INCLUYE: CARGA Y ACARREO DEL PRODUCTO FUERA DE LA OBRA, MANO DE OBRA, HERRAMIENTA Y EQUIPO. (PROYECCION DE CUBIERTA).","M2 ","6.3000",0,"CERO PESOS 00/100 M.N.",0,266585]
[152204,"EXCAVACION EN CEPAS POR CUALQUIER MEDIO, MATERIAL TIPO \"B\", DE 0 A 2.00 M. DE PROFUNDIDAD, EN SECO, INCLUYE: AFINE DE TALUDES Y FONDO, TRASPALEOS,  MOVIMIENTOS Y ACARREOS DENTRO DE LA OBRA, HERRAMIENTAS Y MANO DE OBRA, MEDIDO EN BANCO.","M3 ","0.8200",0,"CERO PESOS 00/100 M.N.",0,266587]
[152404,"EXCAVACION A CIELO ABIERTO EN CAJON POR CUALQUIER MEDIO, MATERIAL TIPO \"B\", DE 0 A 2.00 M. DE PROFUNDIDAD, EN SECO, INCLUYE: AFINE DE TALUDES Y FONDO, TRAPALEOS,  MOVIMIENTOS Y ACARREOS DENTRO DE LA OBRA, HERRAMIENTAS Y MANO DE OBRA, MEDIDO EN BANCO.","M3 ","4.9000",0,"CERO PESOS 00/100 M.N.",0,266589]
[156002,"CARGA POR CUALQUIER MEDIO Y ACARREO EN CAMION DE MATERIAL DE DESPERDICIO PRODUCTO DE LAS EXCAVACIONES FUERA DE LA OBRA, A LUGAR PERMITIDO POR LAS AUTORIDADES CORRESPONDIENTES, MEDIDO EN BANCO. INCLUYE CARGA,  ACARREO Y DESCARGA A TIRO LIBRE, HERRAMIENTA, EQUIPO, MATERIALES DE CONSUMO Y MANO DE OBRA.","M3 ","5.7200",0,"CERO PESOS 00/100 M.N.",0,266590]
["15.02(160)","CIMENTACION                                       ",null,null,null,null,{"$f":"TEXT(SUM(G76:G84), \"$ #,##0.00 ;\")","v":"$ 0.00 "}]
[162002,"CIMIENTO DE PIEDRA BRAZA ACOMODADA PIEDRA POR PIEDRA, ASENTADA CON MORTERO CEMENTO-ARENA  EN PROPORCION 1:3. INCLUYE: MATERIALES, DESPERDICIOS, HERRAMIENTAS, LIMPIEZA, MANO DE OBRA Y ACARREO DE MATERIALES AL SITIO DE SU UTILIZACION.","M3 ","3.1000",0,"CERO PESOS 00/100 M.N.",0,266593]
[162302,"RODAPIE DE PIEDRA BRAZA, ACABADO APARENTE UNA CARA, ASENTADA CON MORTERO CEMENTO-ARENA 1:3. INCLUYE: MATERIALES, HERRAMIENTAS, PLOMEO,   LIMPIEZA, MANO DE OBRA Y ACARREO DE MATERIALES AL SITIO DE SU UTILIZACION.","M3 ","1.0000",0,"CERO PESOS 00/100 M.N.",0,266594]
[162404,"NIVELACION DE MURO DE MAMPOSTERIA CON RAJUELA DE PIEDRA BRAZA JUNTEADA CON MORTERO CEM-ARE 1:3. DE 0.10 M. DE ESPESOR X 0.40 M. DE ANCHO PROMEDIO. INCLUYE: NIVELACION, TRAZO, MANO DE OBRA Y HERRAMIENTA. (NO INCLUYE MATERIALES)","ML ","16.2500",0,"CERO PESOS 00/100 M.N.",0,266595]
[167220,"DALA DE DESPLANTE DE CONCRETO F´C= 150 KG/CM2, T.M.A.= 3/4\", CON SECCION DE 14 X 25 CM., ARMADA CON 4 VARILLAS DEL #3 Y ESTRIBOS DEL #2 @ 20 CM., INCLUYE: ARMADO, COLADO, CURADO, VIBRADO, CIMBRA COMUN, DESCIMBRA, DESPERDICIOS, TRASLAPES, CRUCES DE VARILLAS CON ELEMENTOS TRANSVERSALES, ANDAMIOS, MANO DE OBRA, HERRAMIENTA Y ACARREO DE MATERIALES AL SITIO DE SU UTILIZACION, A CUALQUIER ALTURA.","ML ","5.9900",0,"CERO PESOS 00/100 M.N.",0,266596]
[167514,"DALA DE CONCRETO EN REMATE DE CIMENTACION, F'C=250 KG/CM2, T.M.A.=3/4\", CON SECCION DE 40 X 15 CMS., ARMADA CON 4 VARILLAS DEL # 4 Y ESTRIBOS DEL # 3 @ 20 CMS., INCLUYE: ARMADO, COLADO, CURADO, VIBRADO, CIMBRA COMUN, DESCIMBRA, DESPERDICIOS, MANO DE OBRA, HERRAMIENTA Y ACARREO DE MATERIALES AL SITIO DE SU UTILIZACION.","ML ","2.9900",0,"CERO PESOS 00/100 M.N.",0,266597]
[180002,"RELLENO EN CEPAS POR CUALQUIER MEDIO, CON MATERIAL PRODUCTO DE EXCAVACION, COMPACTADO AL 90% PROCTOR, EN CAPAS DE 20 CM, MEDIDO COMPACTO. INCLUYE: SUMINISTRO DE AGUA PARA LOGRAR HUMEDAD OPTIMA, TENDIDO, TRASPALEOS,  EQUIPO, PRUEBAS DE COMPACTACION, AFINE, NIVELACION, HERRAMIENTAS, MANO DE OBRA Y  ACARREO HASTA EL SITIO DE SU COLOCACION. (MEDIDO EN BANCO).","M3 ","0.3200",0,"CERO PESOS 00/100 M.N.",0,266598]
[180013,"RELLENO EN INTERIOR DE  AULA EXISTENE CON MATERIAL INERTE DE BANCO COMPACTADO AL 90 % PROCTOR,  EN CAPAS DE 20 CMS. DE ESPESOR AGREGANDO AGUA PARA LOGRAR SU HUMEDAD OPTIMA AL 90 % POR CUALQUIER MEDIO, MEDIDO COMPACTO. INCLUYE: SUMINISTRO DE AGUA PARA LOGRAR HUMEDAD OPTIMA, TENDIDO, TRASPALEOS, EQUIPO, PRUEBAS DE COMPACTACION, AFINE, NIVELACION, HERRAMIENTAS, MANO DE OBRA Y  ACARREO HASTA EL SITIO DE SU COLOCACION. (MEDIDO EN BANCO).\n","M3 ","1.0000",0,"CERO PESOS 00/100 M.N.",0,266599]
[180103,"RELLENO COMPACTADO AL 95% PROCTOR, CON MATERIAL DE BANCO, EN CAPAS DE 15 CM DE ESPESOR, AGREGANDO AGUA PARA LOGRAR SU HUMEDAD OPTIMA, POR CUALQUIER MEDIO, INCLUYE: SUMINISTRO DE AGUA PARA LOGRAR HUMEDAD OPTIMA, TENDIDO, TRASPALEOS,  DESPERDICIOS, EQUIPO, PRUEBAS DE COMPACTACION, AFINE, NIVELACION, HERRAMIENTAS, MANO DE OBRA Y  ACARREO HASTA EL SITIO DE SU COLOCACION.  (VOLUMEN MEDIDO COMPACTADO).","M3 ","4.2000",0,"CERO PESOS 00/100 M.N.",0,266600]
[192862,"BASE PARA CASTILLO DE 40 X 40 X 40 CM, EN CIMENTACION DE PIEDRA, CON CONCRETO F'C=150 KG/CM2, TMA=3/4\", CON 4 VARILLAS DE 3/8\" DE DIAMETRO Y ESTRIBOS DE 1/4\" @ 20.0 CM. CIMBRA COMUN,  INCLUYE: CIMBRADO Y DESCIMBRADO, COLADO, VIBRADO, CURADO, MATERIALES, DESPERDICIOS, HERRAMIENTAS, LIMPIEZA, MANO DE OBRA Y ACARREO DE MATERIALES AL SITIO DE SU UTILIZACION.","PZA","4.0000",0,"CERO PESOS 00/100 M.N.",0,266601]
["15.03(200)","ESTRUCTURA                                        ",null,null,null,null,{"$f":"TEXT(SUM(G86:G88), \"$ #,##0.00 ;\")","v":"$ 0.00 "}]
[210322,"CIMBRA DE MADERA, ACABADO APARENTE, EN LOSAS, INCLUYE: HABILITADO, CHAFLANES, CIMBRA, DESCIMBRA, GOTEROS, HERRAMIENTAS, LIMPIEZAS, MANO DE OBRA  Y ACARREO DE MATERIALES AL SITIO DE SU UTILIZACION, A CUALQUIER NIVEL.","M2 ","7.5200",0,"CERO PESOS 00/100 M.N.",0,266602]
[213003,"SUMINISTRO, HABILITADO, ARMADO Y COLOCACION DE ACERO DE REFUERZO FY=4,200 KG/CM2 (G.E.), DE 3/8\" (# 3 ), EN ESTRUCTURA, INCLUYE: MATERIALES, HABILITADO,  DOBLECES,  SILLETAS, ALAMBRE, GANCHOS, ESCUADRAS, TRASLAPES, DESPERDICIOS HERRAMIENTAS, MANO DE OBRA Y ACARREO DE MATERIALES AL SITIO DE SU COLOCACION.","KG ","51.2700",0,"CERO PESOS 00/100 M.N.",0,266603]
[216942,"SUMINISTRO Y COLOCACION DE CONCRETO PREMEZCLADO BOMB, F'C=250 KG/CM2, T.M.A.= 3/4, R.N., EN LOSAS, INCLUYE: MATERIALES, FLETES, MANIOBRAS, BOMBEO, CURADO CON CURACRETO ROJO, VIBRADO, AFINE Y ACABADO REGLEADO,  DESPERDICIO, PRUEBAS DE RESISTENCIA Y MANO DE OBRA, A CUALQUIER NIVEL.","M3 ","0.7600",0,"CERO PESOS 00/100 M.N.",0,266604]
["15.04(310)","MUROS, CADENAS, CASTILLOS Y REPIZONES.            ",null,null,null,null,{"$f":"TEXT(SUM(G90:G94), \"$ #,##0.00 ;\")","v":"$ 0.00 "}]
[310212,"DALA DE CONCRETO F'C=150 KG/CM2, T.M.A.=3/4\", CON SECCION DE 14 X 20 CMS., ARMADA CON 4 VARILLAS DEL # 3 Y ESTRIBOS DEL NO. 2 @ 20 CMS., INCLUYE:  ARMADO, COLADO, CURADO, VIBRADO, CIMBRA COMUN, DESCIMBRA, TRASLAPES, CRUCES DE VARILLAS CON ELEMENTOS TRANSVERSALES, DESPERDICIOS, MANO DE OBRA, HERRAMIENTA Y ACARREO DE MATERIALES AL SITIO DE SU UTILIZACION, A CUALQUIER ALTURA.","ML ","8.7200",0,"CERO PESOS 00/100 M.N.",0,266605]
[310538,"DALA DE CONCRETO F'C=250 KG/CM2, T.M.A.=3/4\", CON SECCION DE 14 X 10 CMS., SIN ARMAR, INCLUYE: COLADO, CURADO, VIBRADO, CIMBRA APARENTE, DESCIMBRA, DESPERDICIOS, MANO DE OBRA, HERRAMIENTA Y ACARREO DE MATERIALES AL SITIO DE SU UTILIZACION, A CUALQUIER ALTURA.","ML ","6.7200",0,"CERO PESOS 00/100 M.N.",0,266606]
[312220,"CASTILLO DE CONCRETO F'C=250 KG/CM2, T.M.A.=3/4\", CON SECCION DE 14 X 15 CMS., ARMADA CON 4 VARILLAS DEL # 3 Y ESTRIBOS DEL NO. 2 @ 20 CMS., INCLUYE: ARMADO, COLADO, CURADO, VIBRADO, CIMBRA COMUN, DESCIMBRA, DESPERDICIOS, TRASLAPES, CRUCES DE VARILLAS CON ELEMENTOS TRANSVERSALES, ANDAMIOS, MANO DE OBRA, HERRAMIENTA Y ACARREO DE MATERIALES AL SITIO DE SU UTILIZACION, A CUALQUIER ALTURA.","ML ","9.6000",0,"CERO PESOS 00/100 M.N.",0,266607]
[314032,"MURO DE TABIQUE DE LAMA, DE 14 CMS. DE ESPESOR PROMEDIO, A SOGA, CON TABIQUE DE LAMA 7 X 14 X 28 CMS., ACABADO COMUN, ASENTADO CON MORTERO CEMENTO-ARENA EN PROPORCION 1:3, EN CUALQUIER NIVEL, INCLUYE: TRAZO, NIVELACION, PLOMEO, ANDAMIOS, DESPERDICIOS, MANO DE OBRA, LIMPIEZA Y ACARREO DE MATERIALES AL SITIO DE SU UTILIZACION.","M2 ","13.8400",0,"CERO PESOS 00/100 M.N.",0,266608]
[344012,"IMPERMEABILIZACION DE CADENAS DE DESPLANTE EN MUROS, CON UNA CAPA DE EMULTEX (O SIMILAR), DOS CAPAS DE BITUMEX (O SIMILAR) Y UNA CAPA DE CRISTAFLEX (O SIMILAR).","ML ","6.7200",0,"CERO PESOS 00/100 M.N.",0,266609]
["15.05(319)","ENTREPISOS, CUBIERTA Y ACABADOS DE AZOTEA         ",null,null,null,null,{"$f":"TEXT(SUM(G96:G99), \"$ #,##0.00 ;\")","v":"$ 0.00 "}]
[322049,"ENTORTADO DE JALCRETO F´C= 100 KG/CM2, AGREGANDO IMPERMEABILIZANTE INTEGRAL A RAZON DE 1 KG/ 50 KG DE CEMENTO DE, DE 5.0 CM DE ESPESOR PROMEDIO, PARA DAR PENDIENTES EN ENTREPISOS Y AZOTEAS, ACABADO  APALILLADO FINO EN FORMA INTEGRAL (SIN PASTA), PARA RECIBIR IMPERMEABILIZANTE,  INCLUYE: MATERIALES, NIVELACION,  ELEVACIONES, DESPERDICIOS, HERRAMIENTAS,  LIMPIEZA, MANO DE OBRA Y ACARREOS AL SITIO DE SU COLOCACION, EN CUALQUIER NIVEL.","M2 ","5.1400",0,"CERO PESOS 00/100 M.N.",0,266610]
[324232,"FORJADO DE ZAVALETA EN AZOTEA A BASE DE JALCRETO SIMPLE F´C=100 KG/CM2, DE 15 CM POR LADO, A 45°, CON ACABADO APALILLADO, INCLUYE: MATERIALES, DESPERDICIOS, HERRAMIENTAS, EQUIPO DE SEGURIDAD, LIMPIEZA, MANO DE OBRA Y ACARREO DE MATERIALES AL LUGAR DE SU UTILIZACION A CUALQUIER NIVEL.","ML ","9.2200",0,"CERO PESOS 00/100 M.N.",0,266611]
[324332,"FORJADO DE PRETIL EN AZOTEA A BASE DE TABIQUE ROJO RECOCIDO DE 7 X 14 X 28 CM. A SOGA, DE 14 CM DE ESPESOR,  ASENTADO CON MORTERO DE  CEMENTO-CAL ARENA EN PROPORCION DE 1:2:6, INCLUYE: MATERIALES, DESPERDICIOS, NIVELACION, PLOMEO,  ELEVACIONES, HERRAMIENTAS, FLETES, LIMPIEZAS, MANO DE OBRA Y ACAREOS DE MATERIALES AL SITIO DE SU UTILIZACION. A CUALQUIER NIVEL.","M2 ","4.3400",0,"CERO PESOS 00/100 M.N.",0,266612]
[344125,"IMPERMEABILIZACION DE MUROS O LOSAS, A BASE DE MEMBRANA PREFABRICADA, MCA. IMPERQUIMIA, UNIPLAS AERO PLUS SBS, ALTO DESEMPEÑO CON VENTILACION ANTIABOLSAMIENTOS, FABRICADA A BASE DE ASFALTOS MODIFICADOS CON POLIMEROS SINTETICOS SBS (ESTIRENO BUTADIENO ESTIRENO) REFORZADA CON MALLA POLIESTER DE ALTA RESISTENCIA, ACABADO APARENTE A BASE DE GRAVILLA ESMALTADA A FUEGO, 4.5 MM  DE ESPESOR TOTAL, COLOR ROJO TERRACOTA, GARANTIA POR ESCRITO DE 10 AÑOS, POR LA EMPRESA CONTRATISTA., INCLUYE: LIMPIEZA Y PREPARACION DE LA SUPERFICIE, APLICACION DE PRIMER IMPERCOAT PRIMARIO SL, PARA ANCLAJE Y TAPAPORO DE LA SUPERFICIE, SELLADO DE FISURAS Y GRIETAS A BASE DE CEMENTO PLASTICO BITUMINOSO IMPERCOAT CEMENTO SBS, SUMINISTRO Y COLOCACION DE MEMBRANA POR MEDIO DE TERMOFUSION A BASE DE FUEGO DE SOPLETE DE GAS BUTANO, HACIENDO TRASLAPES MINIMOS DE 0.10 MTS. EN AMBOS SENTIDOS, SELLADO DE ORILLAS, REMATES Y TRASLAPES, MATERIALES MENORES Y DE CONSUMO, CORTES, DESPERDICIOS, LIMPIEZA GENERAL, HERRAMIENTAS, MANO DE OBRA ESPECIALIZADA Y ACARREOS AL SITIO DE SU COLOCACION.","M2 ","5.1400",0,"CERO PESOS 00/100 M.N.",0,266613]
["15.06(355)","RECUBRIMIENTOS Y ACABADOS                         ",null,null,null,null,{"$f":"TEXT(SUM(G101:G103), \"$ #,##0.00 ;\")","v":"$ 0.00 "}]
[355022,"APLANADO DE MUROS Y/O TECHOS CON MORTERO CEMENTO-CAL-ARENA DE RIO EN PROP. 1:2:6 DE 2 CM. DE ESPESOR PROMEDIO, A PLOMO Y REGLA, ACABADO APALILLADO FINO, INCLUYE: MATERIALES, DESPERDICIOS, ANDAMIOS, HERRAMIENTAS, PLOMEO, NIVELACION, REMATES, LIMPIEZA DEL AREA DE TRABAJO Y ACARREO DE MATERIALES AL SITIO DE SU UTILIZACION. A CUALQUIER NIVEL.\n","M2 ","45.2000",0,"CERO PESOS 00/100 M.N.",0,266614]
[357322,"BOQUILLAS EN PUERTAS Y VENTANAS, CON MORTERO CEMENTO-CAL-ARENA 1:2:6, INCLUYE: ANDAMIOS Y ACARREO DE MATERIALES AL SITIO DE SU UTILIZACION.","ML ","20.8000",0,"CERO PESOS 00/100 M.N.",0,266615]
[357352,"FILETES Y BOLEADOS, HECHOS CON MORTERO CEMENTO-CAL-ARENA EN PROPORCION 1:2:6, INCLUYE: DESPERDICIOS, ANDAMIOS Y ACARREO DE MATERIALES AL SITIO DE SU UTILIZACION, A CUALQUIER NIVEL.","ML ","13.4000",0,"CERO PESOS 00/100 M.N.",0,266616]
["15.07(372)","PISOS                                             ",null,null,null,null,{"$f":"TEXT(SUM(G105:G106), \"$ #,##0.00 ;\")","v":"$ 0.00 "}]
[373026,"PISO DE CONCRETO HECHO EN OBRA F'C=200 KG/CM2, TMA 3/4\", DE 10 CMS. DE ESPESOR, ACABADO RAYADO CON BROCHA, EN FORMA INTERGRAL, SIN UTILIZACION DE PASTA, COLADO A CUADROS, CON REFUERZO DE MALLA ELECTROSOLDADA 6-6 / 10-10, INCLUYE: TRAZO, NIVELACION, AFINE Y COMPACTACION DEL TERRENO, MATERIALES, CIMBRA DE FRONTERA, DESCIMBRA, DESPERDICIOS, CURADO, VIBRADO, MUESTREADO, JUNTAS FRIAS, VOLTEADOR,  HERRAMIENTAS, MANO DE OBRA Y ACARREOS DE MATERIALES AL SITIO DE SU UTILIZACION.","M2 ","3.6700",0,"CERO PESOS 00/100 M.N.",0,266617]
[373502,"CEJA DE CONCRETO F'C=150 KG/CM2, TMA=3/4\" DE 12.0 X 18.0 CM DE SECCION PROMEDIO, ARMADA CON 1 VARILLA #3 (3/8\") Y ESTRIBOS DE 1/4\" @ 25.0 CM, EN CUALQUIER NIVEL. INCLUYE: CIMBRA APARENTE, DESCIMBRA, COLADO, VIBRADO, CURADO, PERFILADO, CHAFLANES, GOTERO, LIMPIEZA, HERRAMIENTAS, MATERIALES, DESPERDICIOS Y MANO DE OBRA.","ML ","6.3000",0,"CERO PESOS 00/100 M.N.",0,266619]
["15.08(382)","ELEMENTOS COMPLEMENTARIOS DE ALBAÑILERIA          ",null,null,null,null,{"$f":"TEXT(SUM(G108:G109), \"$ #,##0.00 ;\")","v":"$ 0.00 "}]
[216582,"SUMINISTRO Y COLOCACION DE GARGOLA DE CONCRETO PREFABRICADA TIPO NAPRESA O SIMILAR, DE 22X40 CMS. PARA DESAGUE PLUVIAL, AMACIZADA CON MORTERO CEM-ARENA DE RIO 1:4, INCLUYE: MATERIALES PARA COLOCACION, ELEVACION, NIVELACION, HERRAMIENTAS, MANO DE OBRA Y ACARREOS AL SITIO DE SU COLOCACION.","PZA","1.0000",0,"CERO PESOS 00/100 M.N.",0,266620]
[382053,"BASE DE CONCRETO F'C=150 KG/CM, DE 15 CM DE ALTURA., ARMADA CON  VARILLAS DE 3/8\"@20 CM. EN AMBOS SENTIDOS, PARA COLOCACION DE EQUIPOS DE EN GENERAL,  ACABADO APALILLADO, INCLUYE: MATERIALES, COLADO, VIBRADO, CURADO, CIMBRA Y DESCIMBRA, NIVELACION,  DESPERDICIOS, REMATES,  HERRAMIENTAS, LIMPIEZA, MANO DE OBRA  Y ACARREO DE MATERIAL AL SITIO DE SU UTILIZACION, A CUALQUIER NIVEL.","M2 ","2.0000",0,"CERO PESOS 00/100 M.N.",0,266621]
["15.09(393)","PINTURA                                           ",null,null,null,null,{"$f":"TEXT(SUM(G111:G114), \"$ #,##0.00 ;\")","v":"$ 0.00 "}]
[393010,"PINTURA VINIL-ACRÍLICA A BASE DE AGUA ACABADO SEMIMATE  LAVABLE, PARA INTERIORES Y EXTERIORES QUE NO DESPRENDA VAPORES TÓXICOS NI OLORES DESAGRADABLES, CON LAS SIGUIENTES CARACTERÍSTICAS ( SÓLIDOS POR PESO 46-52%, SÓLIDOS POR VOLUMEN 30-36%, VISCOSIDAD DE 100-130 UK A 25°C, DENSIDAD > O = 1.2 TON/M3., LAVABILIDAD > O = 4,000 CICLOS, TIEMPO DE SECADO AL TACTO, 30-40 MIN., TIEMPO DE SECADO DURO < O = 8 HRS., CICLO DE CURADO DE 7 DIAS, PH 6-8, RENDIMIENTO EN SUP. LISA 8-10 M2/LT., FINEZA DE MOLIDO (HEGMAN) 3-7 UH.)  EN CADENAS DE DESPLANTE, A UNA CARA, TRABAJO TERMINADO, A DOS MANOS, INCLUYE: MATERIALES MENORES Y DE CONSUMO, PREPARACION DE LA SUPERFICIE, SELLADO DE LA SUPERFICIE, HERRAMIENTAS, LIMPIEZA, MANO DE OBRA Y  ACARREOS DE MATERIALES AL SITIO DE SU UTILIZACION.","ML ","13.4400",0,"CERO PESOS 00/100 M.N.",0,266623]
[393022,"PINTURA VINIL-ACRÍLICA A BASE DE AGUA ACABADO SEMIMATE  LAVABLE, PARA INTERIORES Y EXTERIORES QUE NO DESPRENDA VAPORES TÓXICOS NI OLORES DESAGRADABLES, CON LAS SIGUIENTES CARACTERÍSTICAS ( SÓLIDOS POR PESO 46-52%, SÓLIDOS POR VOLUMEN 30-36%, VISCOSIDAD DE 100-130 UK A 25°C, DENSIDAD > O = 1.2 TON/M3., LAVABILIDAD > O = 4,000 CICLOS, TIEMPO DE SECADO AL TACTO, 30-40 MIN., TIEMPO DE SECADO DURO < O = 8 HRS., CICLO DE CURADO DE 7 DIAS, PH 6-8, RENDIMIENTO EN SUP. LISA 8-10 M2/LT., FINEZA DE MOLIDO (HEGMAN) 3-7 UH.)  EN MUROS APLANADOS DE MEZCLA APALILLADO O PULIDO, TRABAJO TERMINADO, A DOS MANOS, INCLUYE: MATERIALES MENORES Y DE CONSUMO, ANDAMIOS, PREPARACION DE LA SUPERFICIE, SELLADO DE LA SUPERFICIE, HERRAMIENTAS, LIMPIEZA, MANO DE OBRA Y  ACARREOS DE MATERIALES AL SITIO DE SU UTILIZACIÓN.","M2 ","45.2000",0,"CERO PESOS 00/100 M.N.",0,266624]
[393052,"PINTURA VINIL-ACRÍLICA A BASE DE AGUA ACABADO SEMIMATE  LAVABLE, PARA INTERIORES Y EXTERIORES QUE NO DESPRENDA VAPORES TÓXICOS NI OLORES DESAGRADABLES, CON LAS SIGUIENTES CARACTERÍSTICAS ( SÓLIDOS POR PESO 46-52%, SÓLIDOS POR VOLUMEN 30-36%, VISCOSIDAD DE 100-130 UK A 25°C, DENSIDAD > O = 1.2 TON/M3., LAVABILIDAD > O = 4,000 CICLOS, TIEMPO DE SECADO AL TACTO, 30-40 MIN., TIEMPO DE SECADO DURO < O = 8 HRS., CICLO DE CURADO DE 7 DIAS, PH 6-8, RENDIMIENTO EN SUP. LISA 8-10 M2/LT., FINEZA DE MOLIDO (HEGMAN) 3-7 UH.)  EN LOSAS Y ELEMENTOS DE CONCRETO, TRABAJO TERMINADO, A DOS MANOS, INCLUYE: MATERIALES MENORES Y DE CONSUMO, ANDAMIOS, PREPARACION DE LA SUPERFICIE DE CONCRETO, SELLADO DE LA SUPERFICIE, HERRAMIENTAS, LIMPIEZA, MANO DE OBRA Y  EQUIPO DE SEGURIDAD. A CUALQUIER ALTURA.","M2 ","7.5200",0,"CERO PESOS 00/100 M.N.",0,266625]
[393122,"PINTURA DE ESMALTE ALQUIDALICO ANTICORROSIVO, ACABADO BRILLANTE, PARA INTERIORES Y EXTERIORES QUE NO DESPRENDA VAPORES TÓXICOS NI OLORES DESAGRADABLES, CON LAS SIGUIENTES CARACTERÍSTICAS ( SÓLIDOS POR PESO 49-60%, SÓLIDOS POR VOLUMEN 40-46%, VISCOSIDAD DE 110-160 UK A 25°C, DENSIDAD 0.9-1.2 TON/M3., BRILLO A 60°C, 90%, TIEMPO DE SECADO AL TACTO, < O = 6 HRS., TIEMPO DE SECADO DURO < O = 24 HRS., ADHERENCIA 100%, RENDIMIENTO EN SUP. LISA 8-10 M2/LT., DILUCIÓN MÁXIMA (AGUARRÁS, THINER), 15 %,  EN HERRERIA CERRADA (DUELA DE LAMINA ACANALADA), TRABAJO TERMINADO, A DOS MANOS, INCLUYE: MATERIALES MENORES Y DE CONSUMO, ANDAMIOS, PREPARACION DE LA SUPERFICIE, HERRAMIENTAS, LIMPIEZA, MANO DE OBRA Y  EQUIPO DE SEGURIDAD. A CUALQUIER NIVEL.","M2 ","9.8000",0,"CERO PESOS 00/100 M.N.",0,266626]
["15.10(396)","LIMPIEZA                                          ",null,null,null,null,{"$f":"TEXT(SUM(G116:G116), \"$ #,##0.00 ;\")","v":"$ 0.00 "}]
[396012,"LIMPIEZA DE PISOS DE CONCRETO CON AGUA Y ACIDO MURIATICO AL 10%.","M2 ","11.1700",0,"CERO PESOS 00/100 M.N.",0,266627]
["15.11(410)","CANCELERIA, HERRERIA, ALUMINIO, VIDRIOS Y CHAPAS  ",null,null,null,null,{"$f":"TEXT(SUM(G118:G120), \"$ #,##0.00 ;\")","v":"$ 0.00 "}]
[412013,"SUMINISTRO, FABRICACION Y COLOCACION DE HERRERIA TUBULAR Y/O ESTRUCTURAL, INCLUYE: SOLDADURA, ELEMENTOS DE FIJACION, MATERIALES MENORES, DESCALIBRES, DESPERDICIOS, BISAGRAS, FONDO ANTICORROSIVO, FLETES, HERRAMIENTAS, EQUIPO, MANO DE OBRA  Y ACARREO DE MATERIALES AL SITIO DE SU UTLIZACION.","KG ","115.0000",0,"CERO PESOS 00/100 M.N.",0,266628]
[424043,"SUMINISTRO Y COLOCACION DE CHAPA PHILLIPS X-720 O AS-725, INCLUYE: PERFORACIONES, ELEMENTOS DE FIJACION, HERRAMIENTAS, MANO DE OBRA Y  ACARREO DE MATERIAL AL SITIO DE SU UTILIZACION.","PZA","1.0000",0,"CERO PESOS 00/100 M.N.",0,266629]
[424082,"SUMINISTRO Y COLOCACION DE CERRADURA DE SOBREPONER DE SEGURIDAD CON UN SOLO CILINDRO DE ACCION POR AMBOS LADOS TIPO BARRA, MCA. PHILLIPS MODELO 800 FD, INCLUYE: ELEMANTOS DE FIJACION, AJUSTES PRUEBAS, HERRAMIENTAS Y MANO DE OBRA.","PZA","1.0000",0,"CERO PESOS 00/100 M.N.",0,266630]
["15.12(511)","INSTALACION ELECTRICA EN OBRA EXTERIOR            ",null,null,null,null,{"$f":"TEXT(SUM(G122:G129), \"$ #,##0.00 ;\")","v":"$ 0.00 "}]
[514034,"SALIDA ELECTRICA DE CENTRO AISLADA OCULTA, CON TUBERIA Y CONEXIONES CONDUIT DE PVC. PESADO  DE AJUSTE DE 13 Y 19 MM. DE DIAMETRO, CABLE VINANEL THW-LS 600 V. A 75° C, 90° C, MARCA CONDUCTORES MONTERREY, (VIAKON-PROTOCOLIZADO), CABLE VINANEL 21 THW-LS 600 V. A 75° C, 90° C, MARCA CONDUMEX (CONDUMEX PROTOCOLIZADO).  CALIBRE 12 EN FASES Y 12 EN TIERRA FISICA, CAJAS DE REGISTRO  CUADRADAS, CHALUPAS Y TAPAS DE  PVC REFORZADO., INCLUYE: TRAZO, RANURAS, MATERIALES MENORES, HERRAMIENTA, MANO DE OBRA ESPECIALIZADA , CONEXIONES, LIMPIEZA DEL AREA DE TRABAJO, PRUEBAS, DESPERDICIOS Y ACARREO DEL MATERIAL AL SITIO DE SU COLOCACION, EN CUALQUIER NIVEL.","SAL","1.0000",0,"CERO PESOS 00/100 M.N.",0,266631]
[518044,"SALIDA ELECTRICA PARA CONTACTO DUPLEX POLARIZADO, OCULTA, CON TUBERIA Y CONEXIONES CONDUIT DE PVC. PESADO DE 13 Y 19 MM. DE DIAMETRO,  CABLE VINANEL THW-LS 600 V. A 75° C, 90° C, MARCA CONDUCTORES MONTERREY, (VIAKON-PROTOCOLIZADO), CABLE VINANEL 21 THW-LS 600 V. A 75° C, 90° C, MARCA CONDUMEX (CONDUMEX PROTOCOLIZADO)., CALIBRE 10 Y 12, CAJAS DE REGISTRO  CUADRADAS, CHALUPAS Y TAPAS DE PVC REFORZADO, CONTACTO QUINZIÑO, TAPA DE ALUMINIO, INCLUYE: TRAZO, RANURAS, CONEXION A TIERRA, ACCESORIOS, MATERIALES MENORES Y DE CONSUMO, PRUEBAS, DESPERDICIOS Y ACARREO DEL MATERIAL AL SITIO DE SU COLOCACION, A CUALQUIER NIVEL.","SAL","1.0000",0,"CERO PESOS 00/100 M.N.",0,266632]
[522034,"SALIDA ELECTRICA PARA  APAGADOR DOBLE, OCULTA, CON TUBERIA Y CONEXIONES CONDUIT DE PVC TIPO PESADO DE 13 Y 19 MM. DE DIAMETRO, CABLE VINANEL THW-LS 600 V. A 75° C, 90° C, MARCA CONDUCTORES MONTERREY, (VIAKON-PROTOCOLIZADO), CABLE VINANEL 21 THW-LS 600 V. A 75° C, 90° C, MARCA CONDUMEX (CONDUMEX PROTOCOLIZADO). CALIBRE 12, CAJAS CUADRADAS, CHALUPAS Y TAPAS DE PVC, APAGADORES QUINZIÑO, TAPA DE ALUMINIO, INCLUYE: MATERIALES MENORES, PRUEBAS, DESPERDICIOS Y ACARREO DEL MATERIAL AL SITIO DE SU COLOCACION, A CUALQUIER NIVEL.","SAL","1.0000",0,"CERO PESOS 00/100 M.N.",0,266633]
[524526,"ALIMENTACION ELECTRICA DE FUERZA PARA SISTEMA DE EQUIPO HIDRONEUMATICO, CON TUBERIA Y CONEXIONES CONDUIT GALV. P.G. ROSCADA DE  25 MM. DE DIAMETRO,  Y TUBO LIQUATITE DE 1\" DE DIAM.,  CABLE VINANEL THW-LS 600 V. A 75° C, 90° C, MARCA CONDUCTORES MONTERREY, (VIAKON-PROTOCOLIZADO), CABLE VINANEL 21 THW-LS 600 V. A 75° C, 90° C, MARCA CONDUMEX (CONDUMEX PROTOCOLIZADO). CALIBRES 10, CONDULET RECTANGULAR FSC CON TAPA Y EMPAQUE,  INCLUYE: TRAZO,  MATERIALES MENORES, CONEXIONES, CONECTORES, HERRAMIENTAS,  PRUEBAS, CORTES, AJUSTES,  DESPERDICIOS, LIMPIEZAS,  MANO DE OBRA ESPECIALIZADA,  Y ACARREO DEL MATERIAL AL SITIO DE SU COLOCACION. (LONGITUD CONSIDERADA DESDE EL TABLERO DE ALIMENTACION AL TABLERO DEL EQUIPO, DENTRO DEL CUARTO)","SAL","1.0000",0,"CERO PESOS 00/100 M.N.",0,266634]
[540305,"SUMINISTRO E INSTALACION DE CENTRO DE CARGA CAT. QO-816L-100,  DE 8 POLOS  100 AMPERES, INCLUYE: MATERIALES, ZAPATAS, MANO DE OBRA, HERRAMIENTAS, ELEMENTOS DE FIJACION, PRUEBAS,  ACARREOS Y MATERIALES MENORES.","PZA","1.0000",0,"CERO PESOS 00/100 M.N.",0,266642]
[543012,"SUMINISTRO Y COLOCACION DE INTERRUPTOR TERMOMAGNETICO DERIVADO CON 1 POLOS, DE 15-60 AMPERES, MCA. SQUARE D, CAT. QO. INCLUYE: PRUEBAS, MATERIALES MENORES, HERRAMIENTAS, MANO DE OBRA ESPECIALIZADA  Y ACARREO DE MATERIALES AL SITIO DE SU COLOCACION.","PZA","2.0000",0,"CERO PESOS 00/100 M.N.",0,266643]
[543020,"SUMINISTRO Y COLOCACION DE INTERRUPTOR TERMOMAGNETICO CON 2 POLOS, DE 15-50 AMPERES, MCA. SQUARE D, CAT. QO. INCLUYE: PRUEBAS, FLETES, MATERIALES MENORES Y ACARREO DE MATERIALES AL SITIO DE SU COLOCACION.","PZA","2.0000",0,"CERO PESOS 00/100 M.N.",0,266644]
[550090,"SUMINISTRO E INSTALACION DE LUMINARIO FLUORESCENTE DE SOBREPONER, TIPO ENVOLVENTE, AHORRADOR DE ENERGIA DE 2 X 32 WATTS. FABRICADO EN LAMINA CAL 22, RECUBIERTO CON TRATAMIENTO FOSFATIZADO Y PINTURA ACRILICA O POLIESTER COLOR BLANCO, APLICADA ELECTROSTATICAMENTE Y TERMOENDURECIDA, PARA OBTENER UNA REFLECTANCIA MINIMA DE 90%, CON DIFUSOR ACRILICO PRISMATICO 100% PURO, TIPO ENVOLVENTE, CON UNA LONGITUD DE 120 CM., BALASTRO ELECTRONICO DE BAJA EMISION DE ARMONICAS, PARA OPERAR UNA O DOS LAMPARAS T8 DE 32 WATTS, LA LUMINARIA (COMPLETA) DEBERA CUMPLIR CON LA NORMA ANCE, INCLUYE: COPIA DE CERTIFICACION ANCE ANEXA EN ELTRAMITE DE LA ESTIMACION, FIJACION, CONEXION, MATERIALES MENORES, HERRAMIENTAS, GARANTIAS,  MANO DE OBRA, PRUEBAS Y ACARREOS.","PZA","1.0000",0,"CERO PESOS 00/100 M.N.",0,266645]
["15.13(565)","INSTALACION HIDRAULICA, SANITARIA Y GAS EN O. EXT.",null,null,null,null,{"$f":"TEXT(SUM(G131:G133), \"$ #,##0.00 ;\")","v":"$ 0.00 "}]
[579030,"SUCCION PARA LLENADO DE HIDRONEUMATICO A BASE DE TUBERIA DE COBRE DE 1 1/4\" A 1 1/2\" , DESDE LA CISTERNA HASTA EL EQUIPO DE BOMBEO, (DE ACUERDO A GUIAS DE INSTALACION PROPORCIONADAS POR CAPECE) CONSIDERANDO UNA DISTANCIA PROMEDIO DE 10 MTS. DESDE LA UBICACION DE LA CISTERNA AL EQUIPO HIDRONEUMATICO,  INCLUYE: TRAZO, EXCAVACIONES, RELLENOS,  ENCOFRACO CON CONCRETO F'C=100 KG/CM2, LINEAS DE SUCCION, LINEA DE RETORNO PARA PRUEBAS, PICHANCHA DE 1 1/2\", VALVULAS,  MATERIALES MENORES, DESPERDICIOS, CONEXIONES, PRUEBAS, LIMPIEZA,  Y ACARREO DE TODOS LOS MATERIALES AL SITIO DE SU UTILIZACION.","PZA","1.0000",0,"CERO PESOS 00/100 M.N.",0,266648]
[592012,"SUMINISTRO Y COLOCACION DE CESPOL BOTE DE P.V.C. CON REJILLA CROMADA. INCLUYE: MATERIALES MENORES Y DE CONSUMO, HERRAMIENTAS, DESPERDICIOS, PRUEBAS, MANO DE OBRA Y ACARREO DE MATERIALES AL SITIO DE SU COLOCACION.","PZA","1.0000",0,"CERO PESOS 00/100 M.N.",0,266656]
[918592,"SUMINISTRO Y COLOCACION DE EQUIPO DE BOMBEO INTEGRADO DE VELOCIDAD VARIABLE A PRESION CONSTANTE,  MARCA VICTORIA, RAINFORCE  MOD. RF2B3-200VV, CONSTRUIDO CON DOS MOTOBOMBA CENTRIFUGAS ELECTRICAS, MCA. VICTORIA, MOD. AF3-200 CWN, DE 1 1/2\" EN LA SUCCION POR 1 1/2\" EN LA DESCARGA, ACOPLADA DIRECTAMENTE A MOTOR ELECTRICO DE 2 HP., 220-440 V., 3 FASES, 60 HZ, 3500 RPM, TABLERO DE CONTROL INTELIGENTE CON VARIADOR DE VELOCIDAD, PROTECCIONES POR BAJO Y ALTO VOLTAJE, CORTO CIRCUITO, SISTEMA DE ARRANQUE SUAVE, DESCARGA Y FUNCIONAMIENTO EN SECO SELLADO HERMETICAMENTE,  DOS TANQUES PRECARGADOS DE DIAFRAGMA, MCA. VICTORIA DE 4.4 GALONES DE CAPACIDAD, INCLUYE: CABEZAL DE DESCARGA EN FIERRO GRIS DE 3\" DE DIAMETRO EXTREMO BRIDADO, CHASIS METALICO, MANOMETRO ANALOGO, SENSOR DE PRESION,  MATERIALES MENORES Y DE CONSUMO, CONEXIONES HIDRAULICAS Y ELECTRICAS, BRIDA DE FO.FO. DE 3\" CON UN EXTREMO ROSCADO, VALVULA PARA PRECARGADO DE CIERRE RAPIDO, HERRAMIENTAS, CALIBRACION, PRUEBAS, PUESTA EN MARCHA, MANUAL DE OPERACION, GARANTIAS POR ESCRITO, LIMPIEZA TRASLADOS AL SITIO DE SU INSTALACION Y MANO DE OBRA ESPACIALIZACA.","PZA","1.0000",0,"CERO PESOS 00/100 M.N.",0,266661]
["01","PLAZA Y ANDADORES",null,null,null,null,{"$f":"TEXT(SUM(G135 + G142), \"$ #,##0.00 ;\")","v":"$ 0.00 "}]
["01.01(150)","TRABAJOS PRELIMINARES                             ",null,null,null,null,{"$f":"TEXT(SUM(G136:G141), \"$ #,##0.00 ;\")","v":"$ 0.00 "}]
[150120,"TRAZO Y NIVELACION DE EXTERIORES ESTABLECIENDO REFERENCIAS DEFINITIVAS, CON TRANSITO Y NIVEL (EQUIPO TOPOGRAFICO), INCLUYE: PERSONAL TECNICO CALIFICADO, ESTACAS, MOJONERAS, LOCALIZACION DE EJES Y/O ENTRE EJES, BANCOS DE NIVEL, MATERIALES PARA SEÑALAMIENTO, EQUIPO, HERRAMIENTA Y MANO DE OBRA.","M2 ","72.9000",0,"CERO PESOS 00/100 M.N.",0,266583]
[150210,"DESPALME DE TERRENO NATURAL POR CUALQUIER MEDIO, CON ESPESOR PROMEDIO DE 20 CM. INCLUYE: CARGA Y ACARREO DEL PRODUCTO FUERA DE LA OBRA, MANO DE OBRA, HERRAMIENTA Y EQUIPO. (PROYECCION DE CUBIERTA).","M2 ","185.6000",0,"CERO PESOS 00/100 M.N.",0,266584]
[152044,"EXCAVACION EN CEPAS POR MEDIOS MANUALES EN MATERIAL TIPO \"B\", DE 0 A 2.00 M. DE PROFUNDIDAD, EN SECO, INCLUYE: AFINE DE TALUDES Y FONDO, TRASPALEOS,  MOVIMIENTOS Y ACARREOS DENTRO DE LA OBRA, HERRAMIENTAS Y MANO DE OBRA, MEDIDO EN BANCO.","M3 ","12.1500",0,"CERO PESOS 00/100 M.N.",0,266586]
[152404,"EXCAVACION A CIELO ABIERTO EN CAJON POR CUALQUIER MEDIO, MATERIAL TIPO \"B\", DE 0 A 2.00 M. DE PROFUNDIDAD, EN SECO, INCLUYE: AFINE DE TALUDES Y FONDO, TRAPALEOS,  MOVIMIENTOS Y ACARREOS DENTRO DE LA OBRA, HERRAMIENTAS Y MANO DE OBRA, MEDIDO EN BANCO.","M3 ","37.6000",0,"CERO PESOS 00/100 M.N.",0,266588]
[156002,"CARGA POR CUALQUIER MEDIO Y ACARREO EN CAMION DE MATERIAL DE DESPERDICIO PRODUCTO DE LAS EXCAVACIONES FUERA DE LA OBRA, A LUGAR PERMITIDO POR LAS AUTORIDADES CORRESPONDIENTES, MEDIDO EN BANCO. INCLUYE CARGA,  ACARREO Y DESCARGA A TIRO LIBRE, HERRAMIENTA, EQUIPO, MATERIALES DE CONSUMO Y MANO DE OBRA.","M3 ","57.7000",0,"CERO PESOS 00/100 M.N.",0,266591]
[907596,"BASE HIDRAULICA CON MATERIAL DE BANCO A BASE DE MEZCLA DE GRAVA DE 1 1/2\" A FINOS Y ARENA LIMOSA (TEPETATE) EN PROPORCION DE 60-40, TENDIDA EN CAPAS DE 20 CMS. DE ESPESOR EN ESTADO SUELTO Y COMPACTACION AL 100% DE SU P.V.S.M. PROCTOR, INCLUYE: MATERIALES QUE CUMPLAN LAS ESPECIFICACIONES SCT, CONFORMACION Y COMPACTACION, PRUEBAS DE BANCOS, REGALIAS Y COMPACTACION, PRUEBAS DE BANCOS, REGALIAS Y EXTRACCION, CORTES, CARGAS, ACARREOS AL SITIO DE SU UTILIZACION, FORMACION DE CAPAS, HUMEDAD OPTIMA, HOMOGENEIZADO, TENDIDO, COMPACTADO Y NIVELACION, VOLUMEN MEDIDO COMPACTO POR SECCIONAMIENTO, MANO DE OBRA, MAQUINARIA Y EQUIPO.","M3 ","68.0000",0,"CERO PESOS 00/100 M.N.",0,266592]
["01.02(372)","PISOS                                             ",null,null,null,null,{"$f":"TEXT(SUM(G143:G143), \"$ #,##0.00 ;\")","v":"$ 0.00 "}]
[373067,"SUMINISTRO Y COLOCACION DE ADOQUIN CUADRADO PARA  PAVIMENTO DE 8 X 22.5 X 22.5 CMS. CON UNA RESISTENCIA DEL CONCRETO DE 250 KG/CM2,  DE COLOR (GRIS, ROJO, OCRE, CAFE,  NEGRO), SOBRE CAMA DE ARENA DE RIO DE 5 CM DE ESPESOR, JUNTEADO CON ARENA DE RIO CERNIDA. INCLUYE: TRAZO, CAMA DE ARENA, NIVELACION, CORTES, MATERIALES, DESPERDICIOS, LIMPIEZA DEL AREA DE TRABAJO, MANO DE OBRA, HERRAMIENTA Y ACARREO DE MATERIALES AL SITIO DE SU UTILIZACION","M2 ","72.9000",0,"CERO PESOS 00/100 M.N.",0,266618]
["04","RED HIDRAULICA",null,null,null,null,{"$f":"TEXT(SUM(G145 + G147), \"$ #,##0.00 ;\")","v":"$ 0.00 "}]
["04.01(382)","ELEMENTOS COMPLEMENTARIOS DE ALBAÑILERIA          ",null,null,null,null,{"$f":"TEXT(SUM(G146:G146), \"$ #,##0.00 ;\")","v":"$ 0.00 "}]
[383014,"FORJADO EN OBRA DE BASE DE CONCRETO F´C= 150 KG/CM2, DE 10 CM DE ESPESOR, PARA TOMA DE RIEGO Y/O MANGUERA, CON FORMA TRAPEZOIDAL, MEDIDAS GENERALES DE 65 CM DE BASE INFERIOR, 30 CM DE BASE SUPERIOR Y 95 CM DE ALTURA TOTAL EMPOTRADE EN EL TERRENO NATURAL 30 CM, ARMADA CON MALLA ELECTROSOLDADA 6 X 6 - 10/10, CON SALIDA PARA HIDRANTE A BASE DE TUBERIA DE CPVC DE 3/4\" DE DIAMETRO, INCLUYE: TRAZO, EXCAVACIONES, CIMBRA APARENTE, DECIMBRADO, CHAFLANES, COLADO, CURADO, VIBRADO,  MATERIALES, DESPERDICIOS, 1 MTS DE TUBO DE CPVC, CONEXIONES, PEGAMENTO, LLAVE DE CHORRO PARA MANGUERA DE 3/4\" MCA. URREA FIG. 19N, MANO DE OBRA, HERRAMIENTAS, LIMPIEZA, Y ACARREO DE MATERIALES AL SITIO DE SU UTILIZACION.","PZA","1.0000",0,"CERO PESOS 00/100 M.N.",0,266622]
["04.02(565)","INSTALACION HIDRAULICA, SANITARIA Y GAS EN O. EXT.",null,null,null,null,{"$f":"TEXT(SUM(G148:G154), \"$ #,##0.00 ;\")","v":"$ 0.00 "}]
[589313,"SUMINISTRO Y TENDIDO DE TUBERÍA DE CPVC-CTS, PARA CEMENTAR  DE 19 MM DE DIAM. INCLUYE: TRAZO, CONEXIONES (COPLES, CODOS, TEES, NIPLES, ETC), DESPERDICIOS, ENCOFRADO CON CONCRETO F'C=100 KG/CM2 DE 6 X 15 CMS DE SECCION, MATERIALES MENORES Y DE CONSUMO, PRUEBAS, EXCAVACIÓN, RELLENO, HERRAMIENTAS, MANO DE OBRA Y ACARREO DE MATERIALES AL SITIO DE SU COLOCACIÓN.","ML ","30.0000",0,"CERO PESOS 00/100 M.N.",0,266651]
[589316,"SUMINISTRO Y TENDIDO DE TUBERIA DE CPVC-CTS, PARA CEMENTAR  DE 38 MM DE DIAM. INCLUYE: TRAZO, CONEXIONES (COPLES, CODOS, TEES, NIPLES, ETC), DESPERDICIOS, ENCOFRADO CON CONCRETO F'C=100 KG/CM2 DE 6 X 15 CMS DE SECCION, MATERIALES MENORES Y DE CONSUMO, PRUEBAS, EXCAVACION, RELLENO, HERRAMIENTAS, MANO DE OBRA Y ACARREO DE MATERIALES AL SITIO DE SU COLOCACION.","ML ","8.0000",0,"CERO PESOS 00/100 M.N.",0,266652]
[589317,"SUMINISTRO Y TENDIDO DE TUBERIA DE CPVC-CTS, PARA CEMENTAR  DE 50 MM DE DIAM. INCLUYE: TRAZO, CONEXIONES (COPLES, CODOS, TEES, NIPLES, ETC), DESPERDICIOS, ENCOFRADO CON CONCRETO F'C=100 KG/CM2 DE 6 X 15 CMS DE SECCION, MATERIALES MENORES Y DE CONSUMO, PRUEBAS, EXCAVACION, RELLENO, HERRAMIENTAS, MANO DE OBRA Y ACARREO DE MATERIALES AL SITIO DE SU COLOCACION.","ML ","7.0000",0,"CERO PESOS 00/100 M.N.",0,266653]
[591333,"SUMINISTRO E INSTALACION DE VALVULA DE COMPUERTA, MCA URREA FIG. 83 DE 19 MM DE DIAMETRO, EXTREMOS INTERIORES ROSCADOS  INCLUYE: MATERIALES MENORES Y DE CONSUMO, PRUEBAS, HERRAMIENTAS, LIMPIEZA, MANO DE OBRA Y ACARREO DE MATERIALES AL SITIO DE  SU COLOCACION.","PZA","1.0000",0,"CERO PESOS 00/100 M.N.",0,266654]
[591414,"SUMINISTRO Y COLOCACION DE VALVULA DE ESFERA (BOLA) EXTREMOS ROSCADOS 2\" (51 MM) DE DIAMETRO. MCA URREA, FIG. 550,  INCLUYE: MATERIALES MENORES Y DE CONSUMO, HERRAMIENTAS, PRUEBAS, LIMPIEZA, MANO DE OBRA Y ACARREOS DE MATERIALES AL SITIO DE SU COLOCACION.","PZA","1.0000",0,"CERO PESOS 00/100 M.N.",0,266655]
[596002,"REGISTRO HIDRAULICO DE 0.40 X 0.40 X 0.60 M, CON MURO DE LADRILLO DE LAMA 5.5 X 11.0 X 22.0 CM, ASENTADO CON MORTERO CEMENTO-ARENA 1:3, A SOGA, APLANADO CON MORTERO CEMENTO-ARENA DE RIO 1:3,  Y PISO DE CONCRETO ACABADO PULIDO. INCLUYE: TRAZO, EXCAVACIONES, NIVELACION, RELLENO CON MATERIAL PRODUCTO DE EXCAVACION, RETIRO DE MATERIAL EXCEDENTE FUERA DE LA OBRA, TAPA DE CONCRETO F'C=200 KG/CM2, MARCO Y CONTRAMARCO DE ANGULO DE 1 1/2\" X 1/8\", MATERIALES, DESPERDICIOS, HERRAMIENTAS, MANO DE OBRA, LIMPIEZA, RETIRO DE MATERIAL PRODUCTO DE EXCAVACION FUERA DE LA OBRA Y ACARREO DE MATERIALES AL SITIO DE SU UTILIZACION.","PZA","2.0000",0,"CERO PESOS 00/100 M.N.",0,266657]
[910748,"SUMINISTRO E INSTALACION DE VALVULA DE COMPUERTA, MCA URREA FIG. 83 DE 51 MM DE DIAMETRO, EXTREMOS INTERIORES ROSCADOS  INCLUYE: MATERIALES MENORES Y DE CONSUMO, PRUEBAS, HERRAMIENTAS, LIMPIEZA, MANO DE OBRA Y ACARREO DE MATERIALES AL SITIO DE  SU COLOCACION.","PZA","1.0000",0,"CERO PESOS 00/100 M.N.",0,266660]
["02","RED ELECTRICA",null,null,null,null,{"$f":"TEXT((G156), \"$ #,##0.00 ;\")","v":"$ 0.00 "}]
["02.01(511)","INSTALACION ELECTRICA EN OBRA EXTERIOR            ",null,null,null,null,{"$f":"TEXT(SUM(G157:G165), \"$ #,##0.00 ;\")","v":"$ 0.00 "}]
[534006,"SUMINISTRO Y TENDIDO DE TUBO CONDUIT DE P.V.C. PESADO, DE 25 MM DIAM. INC.: CONEXIONES, TRAZO, EXCAVACION, RELLENO, DESPERDICIOS, MATERIALES MENORES, PRUEBAS Y ACARREO AL SITIO DE SU COLOCACION.","ML ","36.0000",0,"CERO PESOS 00/100 M.N.",0,266635]
[534038,"SUMINISTRO Y TENDIDO DE TUBO CONDUIT DE P.V.C. PESADO, DE 32 MM DIAM. INCLUYE: CONEXIONES, TRAZO, CORTES, AJUSTES, DESPERDICIOS, MATERIALES MENORES, PRUEBAS, HERRAMIENTAS, LIMPIEZA, MANO DE OBRA Y ACARREO AL SITIO DE SU COLOCACION. A CUALQUIER NIVEL.","ML ","39.0000",0,"CERO PESOS 00/100 M.N.",0,266636]
[537108,"SUMINISTRO Y COLOCACION DE CABLE DE COBRE DESNUDO CAL. 10, AWG, MCA. CONDUMEX, CONELEC O CONDUCTORES MONTERREY. INCLUYE: DESPERDICIOS, MATERIALES MENORES, PRUEBAS Y ACARREO AL SITIO DE SU COLOCACION.","ML ","39.6000",0,"CERO PESOS 00/100 M.N.",0,266637]
[537112,"SUMINISTRO Y COLOCACION DE CABLE DE COBRE DESNUDO CAL. 8, AWG, MCA. CONDUMEX, CONELEC O CONDUCTORES MONTERREY. INCLUYE: DESPERDICIOS, MATERIALES MENORES, PRUEBAS Y ACARREO AL SITIO DE SU COLOCACION.","ML ","42.9000",0,"CERO PESOS 00/100 M.N.",0,266638]
[538018,"SUMINISTRO E INSTALACION DE CABLE DE ALUMINIO CON AISLAMIENTO XLP, CAL.6 AWG, MONOPOLAR, PARA DISTRIBUCION SUBTERRANEA, VULCANEL SERIE AA 8000, TIPO XHHW-2, LS CT-SR ROHS, 90 °C, 600 V,  MARCA CONDUCTORES MONTERREY O  CONDUMEX,  INCLUYE: FLETE, ELEVACION, CONEXIONES, MATERIALES MENORES Y DE CONSUMO, HERRAMIENTAS, EQUIPO DE SEGURIDAD, DESPERDICIOS, LIMPIEZA DEL AREA DE TRABAJO, PRUEBAS, Y MANO DE OBRA,  EN CUALQUIER NIVEL.","ML ","79.2000",0,"CERO PESOS 00/100 M.N.",0,266639]
[538020,"SUMINISTRO E INSTALACION DE CABLE DE ALUMINIO CON AISLAMIENTO XLP, CAL.4 AWG, MONOPOLAR, PARA DISTRIBUCION SUBTERRANEA, VULCANEL SERIE AA 8000, TIPO XHHW-2, LS CT-SR ROHS, 90 °C, 600 V,  MARCA CONDUCTORES MONTERREY O  CONDUMEX,  INCLUYE: FLETE, ELEVACION, CONEXIONES, MATERIALES MENORES Y DE CONSUMO, HERRAMIENTAS, EQUIPO DE SEGURIDAD, DESPERDICIOS, LIMPIEZA DEL AREA DE TRABAJO, PRUEBAS, Y MANO DE OBRA,  EN CUALQUIER NIVEL.","ML ","125.4000",0,"CERO PESOS 00/100 M.N.",0,266640]
[538022,"SUMINISTRO E INSTALACION DE CABLE DE ALUMINIO CON AISLAMIENTO XLP, CAL.2  AWG, MONOPOLAR, PARA DISTRIBUCION SUBTERRANEA, VULCANEL SERIE AA 8000, TIPO XHHW-2, LS CT-SR ROHS, 90 °C, 600 V,  MARCA CONDUCTORES MONTERREY O  CONDUMEX,  INCLUYE: FLETE, ELEVACION, CONEXIONES, MATERIALES MENORES Y DE CONSUMO, HERRAMIENTAS, EQUIPO DE SEGURIDAD, DESPERDICIOS, LIMPIEZA DEL AREA DE TRABAJO, PRUEBAS, Y MANO DE OBRA,  EN CUALQUIER NIVEL.","ML ","42.9000",0,"CERO PESOS 00/100 M.N.",0,266641]
[558521,"SUMINISTRO Y COLOCACION DE VARILLA DE TIERRA COOPERWELD, DE 3.00 M X 16 MM DE DIAM.  INCLUYE:  1 CARGA CADWELD No. 90. 3 MTS DE CABLE DE COBRE DESNUDO SEMIDURO CAL. 2 AWG. PARTE PROPORCIONAL DE MOLDE 161V.   MATERIALES MENORES, HERRAMIENTAS, MANO DE OBRA,  PRUEBAS Y ACARREO AL SITIO DE SU COLOCACION.","PZA","2.0000",0,"CERO PESOS 00/100 M.N.",0,266646]
[596056,"REGISTRO ELECTRICO DE 60.0 X 60.0 X 80.0 CM. DE LADRILLO DE LAMA DE 5.5 X 11.0 X 22.0 CM, A SOGA, ASENTADO Y APLANADO CON MORTERO CEMENTO - ARENA 1:4, CON CAMA DE GRAVA DE 5.0 CM DE ESPESOR, TAPA DE LAMINA NEGRA CAL. 18 CON MARCO Y CONTRAMARCO DE  ANGULO DE 1 1/2\" X 1/8\", AHOGADA EN CADENA DE CONCRETO F'C=200 KG/CM2 SECCION 14 X 20 CMS., ARMADA CON 4 VARILLAS DEL # 3 Y ESTRIBOS DEL # 2 @ 20 CMS., INCLUYE: TRAZO, EXCAVACIONES, RELLENOS CON MATERIAL PRODUCTO DE EXCAVACION, RETIRO DE MATERIAL EXCEDENTE FUERA DE LA OBRA, VARILLA AL CENTRO PARA LA COCA DE LOS CABLES A UTILIZAR, CIMBRA COMUN, DESCIMBRADO, DESPERDICIOS, PRIMARIO ROJO ANTICORROSIVO Y PINTURA DE ESMALTE A 2 MANOS, EN HERRERIA (TAPA, CONTRATAPA, MARCO Y CONTRAMARCO), RETIRO DE MATERIAL PRODUCTO DE EXCAVACION FUERA DE LA OBRA Y ACARREO DEL MATERIAL AL SITIO DE SU UTILIZACION,","PZA","4.0000",0,"CERO PESOS 00/100 M.N.",0,266647]
["03","RED SANITARIA",null,null,null,null,{"$f":"TEXT((G167), \"$ #,##0.00 ;\")","v":"$ 0.00 "}]
["03.01(565)","INSTALACION HIDRAULICA, SANITARIA Y GAS EN O. EXT.",null,null,null,null,{"$f":"TEXT(SUM(G168:G170), \"$ #,##0.00 ;\")","v":"$ 0.00 "}]
[585006,"SUMINISTRO Y COLOCACION DE TUBO DE P.V.C. SANITARIO (ANGER),1 CAMPANA DE 2\" (50 MM) DIAM., INCLUYE: CONEXIONES, TRAZO, EXCAVACION, RELLENO COMPACTADO, DESPERDICIOS, PRUEBAS, PASOS EN CIMENTACION Y ACARREO DE MATERIALES AL SITIO DE SU COLOCACION.","ML ","2.5000",0,"CERO PESOS 00/100 M.N.",0,266649]
[585014,"SUMINISTRO Y COLOCACION DE TUBO DE P.V.C. SANITARIO (ANGER)  SERIE 25, CAMPANA, DE 6\" (150 MM) DIAM., INCLUYE: CONEXIONES, TRAZO, EXCAVACION,  PASOS POR CIMENTACION, CAMA DE ARENA, RELLENO COMPACTADO, DESPERDICIOS, PRUEBAS Y ACARREO DE MATERIALES AL SITIO DE SU COLOCACION.","ML ","15.0000",0,"CERO PESOS 00/100 M.N.",0,266650]
[596027,"REGISTRO SANITARIO DE 0.40 X 0.40 X 0.60 M, CON MURO DE LADRILLO DE LAMA DE 5.5 X 11.0 X 22.0 CM, ASENTADO CON MORTERO CEMENTO-ARENA 1:3, APLANADO CON MORTERO CEMENTO-ARENA DE RIO 1:3, INCLUYE: TRAZO, EXCAVACIONES, NIVELACION, RELLENO CON MATERIAL PRODUCTO DE EXCAVACION, RETIRO DE MATERIAL EXCEDENTE FUERA DE LA OBRA, TAPA DE CONCRETO F'C=200 KG/CM2, MARCO Y CONTRAMARCO DE ANGULO DE 1 1/2\" X 1/8\", MATERIALES, DESPERDICIOS, HERRAMIENTAS, MANO DE OBRA, LIMPIEZA, RETIRO DE MATERIAL PRODUCTO DE EXCAVACION FUERA DE LA OBRA Y ACARREO DE MATERIALES AL SITIO DE SU UTILIZACION.","PZA","3.0000",0,"CERO PESOS 00/100 M.N.",0,266658]
["05","CISTERNA",null,null,null,null,{"$f":"TEXT((G172), \"$ #,##0.00 ;\")","v":"$ 0.00 "}]
["05.01(565)","INSTALACION HIDRAULICA, SANITARIA Y GAS EN O. EXT.",null,null,null,null,{"$f":"TEXT(SUM(G173:G173), \"$ #,##0.00 ;\")","v":"$ 0.00 "}]
[597109,"SUMINISTRO Y COLOCACION  DE CISTERNA PREFABRICADA DE 10 M3 DE CAPACIDAD, FORMADA A BASE DE SUMINISTRO E INSTALACION DE 2 (DOS) CISTERNAS PREFABRICADA DE CONCRETO F`C=250 KG/CM2, ARMADA CON ACERO DE REFUERZO F`Y= 5000 KG/CM2, PARA UNA CAPACIDAD DE 5,000 LTS. APROXIMADAMENTE, INCLUYE: FLETE, GRUA, TRAZO, LIMPIEZA, EXCAVACIONES EN MATERIAL TIPO \"A\" Y/O \"B\",  NIVELACION, AFINE, CONFORMACION DEL TERRENO RESULTANTE, INTERCONEXION DE LAS 2 CISTERNAS CON TUBERIA Y CONEXIONES DE PVC CED. 40 DE 6\" DE DIAMETRO, FIRME DE CONCRETO F´C= 150 KG/CM2, ARMADO CON MALLA ELECTROSOLDADE 6 X 6-10/10 DE 10 CMS. DE ESPESOR,  BROCALES, TAPAS METALICA DE FO.FO. PARA REGISTRO, AGUA PARA LLENADO DE CISTERNA DURANTE EL RELLENO, RELLENOS A VOLTEO Y RELLENOS COMPACTADOS AL 90% DE SU PVSM., DESPERDICIOS, PRUEBAS, EQUIPO, GARANTIA POR ESCRITO DE POR LO MENOS DE 5 AÑO,  HERRAMIENTA, MANO DE OBRA Y RETIRO DE MATERIAL SOBRANTE PRODUCTO DE EXCAVACION FUERA DE LA OBRA. ","PZA","1.0000",0,"CERO PESOS 00/100 M.N.",0,266659]
[null,"RESUMEN DE PARTIDAS"]
["BAS-CON-06076","TRABAJOS DE TERMINACIÓN DE EDIFICIO E INSTALACIONES EN OBRA EXTERIOR EN LA ESCUELA PRIMARIA JUANA DE ASBAJE CCT 14DPR3471K, UBICADA EN LA COLONIA BRISAS DE CHAPALA, MUNICIPIO DE SAN PEDRO TLAQUEPAQUE, JALISCO.",null,null,null,null,{"$f":"G17","v":"$ 0.00 "}]
["A","EDIFICIO A",null,null,null,null,{"$f":"G18","v":"$ 0.00 "}]
["A.01(140)","DEMOLICIONES, DESMONTAJES Y MECANICA DE SUELOS    ",null,null,null,null,{"$f":"G19","v":"$ 0.00 "}]
["A.02(382)","ELEMENTOS COMPLEMENTARIOS DE ALBAÑILERIA          ",null,null,null,null,{"$f":"G24","v":"$ 0.00 "}]
["A.03(390)","CARPINTERIA                                       ",null,null,null,null,{"$f":"G28","v":"$ 0.00 "}]
["A.04(393)","PINTURA                                           ",null,null,null,null,{"$f":"G31","v":"$ 0.00 "}]
["A.05(396)","LIMPIEZA                                          ",null,null,null,null,{"$f":"G38","v":"$ 0.00 "}]
["A.06(410)","CANCELERIA, HERRERIA, ALUMINIO, VIDRIOS Y CHAPAS  ",null,null,null,null,{"$f":"G44","v":"$ 0.00 "}]
["A.07(564)","INSTALACION HIDRAULICA, SANITARIA Y GAS EN EDIF.  ",null,null,null,null,{"$f":"G50","v":"$ 0.00 "}]
["A.08(590)","MUEBLES DE BAÑO Y COCINA                          ",null,null,null,null,{"$f":"G52","v":"$ 0.00 "}]
["AUL","AULAS",null,null,null,null,{"$f":"G64","v":"$ 0.00 "}]
["AUL.01(140)","DEMOLICIONES, DESMONTAJES Y MECANICA DE SUELOS    ",null,null,null,null,{"$f":"G65","v":"$ 0.00 "}]
[15,"CUARTO DE MAQUINAS",null,null,null,null,{"$f":"G68","v":"$ 0.00 "}]
["15.01(150)","TRABAJOS PRELIMINARES                             ",null,null,null,null,{"$f":"G69","v":"$ 0.00 "}]
["15.02(160)","CIMENTACION                                       ",null,null,null,null,{"$f":"G75","v":"$ 0.00 "}]
["15.03(200)","ESTRUCTURA                                        ",null,null,null,null,{"$f":"G85","v":"$ 0.00 "}]
["15.04(310)","MUROS, CADENAS, CASTILLOS Y REPIZONES.            ",null,null,null,null,{"$f":"G89","v":"$ 0.00 "}]
["15.05(319)","ENTREPISOS, CUBIERTA Y ACABADOS DE AZOTEA         ",null,null,null,null,{"$f":"G95","v":"$ 0.00 "}]
["15.06(355)","RECUBRIMIENTOS Y ACABADOS                         ",null,null,null,null,{"$f":"G100","v":"$ 0.00 "}]
["15.07(372)","PISOS                                             ",null,null,null,null,{"$f":"G104","v":"$ 0.00 "}]
["15.08(382)","ELEMENTOS COMPLEMENTARIOS DE ALBAÑILERIA          ",null,null,null,null,{"$f":"G107","v":"$ 0.00 "}]
["15.09(393)","PINTURA                                           ",null,null,null,null,{"$f":"G110","v":"$ 0.00 "}]
["15.10(396)","LIMPIEZA                                          ",null,null,null,null,{"$f":"G115","v":"$ 0.00 "}]
["15.11(410)","CANCELERIA, HERRERIA, ALUMINIO, VIDRIOS Y CHAPAS  ",null,null,null,null,{"$f":"G117","v":"$ 0.00 "}]
["15.12(511)","INSTALACION ELECTRICA EN OBRA EXTERIOR            ",null,null,null,null,{"$f":"G121","v":"$ 0.00 "}]
["15.13(565)","INSTALACION HIDRAULICA, SANITARIA Y GAS EN O. EXT.",null,null,null,null,{"$f":"G130","v":"$ 0.00 "}]
["01","PLAZA Y ANDADORES",null,null,null,null,{"$f":"G134","v":"$ 0.00 "}]
["01.01(150)","TRABAJOS PRELIMINARES                             ",null,null,null,null,{"$f":"G135","v":"$ 0.00 "}]
["01.02(372)","PISOS                                             ",null,null,null,null,{"$f":"G142","v":"$ 0.00 "}]
["04","RED HIDRAULICA",null,null,null,null,{"$f":"G144","v":"$ 0.00 "}]
["04.01(382)","ELEMENTOS COMPLEMENTARIOS DE ALBAÑILERIA          ",null,null,null,null,{"$f":"G145","v":"$ 0.00 "}]
["04.02(565)","INSTALACION HIDRAULICA, SANITARIA Y GAS EN O. EXT.",null,null,null,null,{"$f":"G147","v":"$ 0.00 "}]
["02","RED ELECTRICA",null,null,null,null,{"$f":"G155","v":"$ 0.00 "}]
["02.01(511)","INSTALACION ELECTRICA EN OBRA EXTERIOR            ",null,null,null,null,{"$f":"G156","v":"$ 0.00 "}]
["03","RED SANITARIA",null,null,null,null,{"$f":"G166","v":"$ 0.00 "}]
["03.01(565)","INSTALACION HIDRAULICA, SANITARIA Y GAS EN O. EXT.",null,null,null,null,{"$f":"G167","v":"$ 0.00 "}]
["05","CISTERNA",null,null,null,null,{"$f":"G171","v":"$ 0.00 "}]
["05.01(565)","INSTALACION HIDRAULICA, SANITARIA Y GAS EN O. EXT.",null,null,null,null,{"$f":"G172","v":"$ 0.00 "}]
[]
["IMPORTE CON LETRA (IVA INCLUIDO)",null,null,null,null,"SUBTOTAL M.N.",{"$f":"TEXT(G17,  \"$ #,##0.00 ;\")","v":"$ 0.00 "}]
[{"$f":"UPPER(CONVERTIRNUM(ROUND( G17 * 1.16, 2)))","v":"CERO PESOS 00/100 M.N."},null,null,null,null,"IVA M.N.",{"$f":"TEXT(ROUND( G17 * 0.16, 2),  \"$ #,##0.00 ;\")","v":"$ 0.00 "}]
[null,null,null,null,null,"TOTAL M.N.",{"$f":"TEXT(ROUND( G17 * 1.16, 2),  \"$ #,##0.00 ;\")","v":"$ 0.00 "}]